Workbook

Sheet Summary
H2: Reference: | I2: Anchors (SCM-1.0)
H3: Tested: | I3: Tested (Rnnnn)
C4: All Intra
C5: Bit-rate saving (Total) | D5: Bit-rate saving (Average) | E5: Bit-rate saving (Min) | F5: Bit-rate saving (Max)
B7: RGB, text & graphics with motion, 1080p | C7: ='AI-SCC'!AC29 -> 0.08636958578 | D7: ='AI-SCC'!AC42 -> 0.0884133235 | E7: ='AI-SCC'!AC55 -> 0.03393487601 | F7: ='AI-SCC'!AC68 -> 0.1463942177
B8: RGB, text & graphics with motion,720p | C8: ='AI-SCC'!AC30 -> 0.08799174449 | D8: ='AI-SCC'!AC43 -> 0.06996742276 | E8: ='AI-SCC'!AC56 -> 0.00153113336 | F8: ='AI-SCC'!AC69 -> 0.1939738494
B9: RGB, mixed content, 1440p | C9: ='AI-SCC'!AC31 -> 0.006547509846 | D9: ='AI-SCC'!AC44 -> 0.00671986353 | E9: ='AI-SCC'!AC57 -> 0.005905045717 | F9: ='AI-SCC'!AC70 -> 0.007534681343
B10: RGB, mixed content, 1080p | C10: ='AI-SCC'!AC32 -> 0.005785886432 | D10: ='AI-SCC'!AC45 -> 0.005785886432 | E10: ='AI-SCC'!AC58 -> 0.005785886432 | F10: ='AI-SCC'!AC71 -> 0.005785886432
B11: RGB, Animation, 720p | C11: ='AI-SCC'!AC33 -> -4.042042025e-05 | D11: ='AI-SCC'!AC46 -> -4.042042025e-05 | E11: ='AI-SCC'!AC59 -> -4.042042025e-05 | F11: ='AI-SCC'!AC72 -> -4.042042025e-05
B12: RGB, camera captured, 1080p | C12: ='AI-SCC'!AC34 -> -3.34130991e-05 | D12: ='AI-SCC'!AC47 -> -3.420825042e-05 | E12: ='AI-SCC'!AC60 -> -3.776706112e-05 | F12: ='AI-SCC'!AC73 -> -3.064943972e-05
B13: YUV, text & graphics with motion, 1080p | C13: ='AI-SCC'!AC35 -> 0.1005615735 | D13: ='AI-SCC'!AC48 -> 0.1006218847 | E13: ='AI-SCC'!AC61 -> 0.02710059252 | F13: ='AI-SCC'!AC74 -> 0.1742068596
B14: YUV, text & graphics with motion,720p | C14: ='AI-SCC'!AC36 -> 0.07660554141 | D14: ='AI-SCC'!AC49 -> 0.06788993624 | E14: ='AI-SCC'!AC62 -> 0.001343166969 | F14: ='AI-SCC'!AC75 -> 0.1649279638
B15: YUV, mixed content, 1440p | C15: ='AI-SCC'!AC37 -> 0.003367105597 | D15: ='AI-SCC'!AC50 -> 0.003806535849 | E15: ='AI-SCC'!AC63 -> 0.0009485738467 | F15: ='AI-SCC'!AC76 -> 0.006664497851
B16: YUV, mixed content, 1080p | C16: ='AI-SCC'!AC38 -> 0.003359578569 | D16: ='AI-SCC'!AC51 -> 0.003359578569 | E16: ='AI-SCC'!AC64 -> 0.003359578569 | F16: ='AI-SCC'!AC77 -> 0.003359578569
B17: YUV, Animation, 720p | C17: ='AI-SCC'!AC39 -> -3.865861206e-05 | D17: ='AI-SCC'!AC52 -> -3.865861206e-05 | E17: ='AI-SCC'!AC65 -> -3.865861206e-05 | F17: ='AI-SCC'!AC78 -> -3.865861206e-05
B18: YUV, camera captured, 1080p | C18: ='AI-SCC'!AC40 -> -5.481004263e-05 | D18: ='AI-SCC'!AC53 -> -5.283974347e-05 | E18: ='AI-SCC'!AC66 -> -6.288347161e-05 | F18: ='AI-SCC'!AC79 -> -4.279601533e-05
B19: Enc Time[%] | C19: ='AI-SCC'!Z82 -> 1.095838769
B20: Dec Time[%] | C20: ='AI-SCC'!Y82 -> 0.9538818224
C22: Random Access
C23: Bit-rate saving (Total) | D23: Bit-rate saving (Average) | E23: Bit-rate saving (Min) | F23: Bit-rate saving (Max)
B25: RGB, text & graphics with motion, 1080p | C25: ='RA-SCC'!AC29 -> 0.02045644665 | D25: ='RA-SCC'!AC42 -> 0.04342074308 | E25: ='RA-SCC'!AC55 -> 0.0164081402 | F25: ='RA-SCC'!AC68 -> 0.09545009447
B26: RGB, text & graphics with motion,720p | C26: ='RA-SCC'!AC30 -> 0.01135035059 | D26: ='RA-SCC'!AC43 -> 0.03287453603 | E26: ='RA-SCC'!AC56 -> 0.0008482679789 | F26: ='RA-SCC'!AC69 -> 0.07108289751
B27: RGB, mixed content, 1440p | C27: ='RA-SCC'!AC31 -> 0.0006541817578 | D27: ='RA-SCC'!AC44 -> 0.0006570977526 | E27: ='RA-SCC'!AC57 -> 0.0006069550482 | F27: ='RA-SCC'!AC70 -> 0.0007072404569
B28: RGB, mixed content, 1080p | C28: ='RA-SCC'!AC32 -> 0.0006873559759 | D28: ='RA-SCC'!AC45 -> 0.0006873559759 | E28: ='RA-SCC'!AC58 -> 0.0006873559759 | F28: ='RA-SCC'!AC71 -> 0.0006873559759
B29: RGB, Animation, 720p | C29: ='RA-SCC'!AC33 -> 2.248435945e-06 | D29: ='RA-SCC'!AC46 -> 2.248435945e-06 | E29: ='RA-SCC'!AC59 -> 2.248435945e-06 | F29: ='RA-SCC'!AC72 -> 2.248435945e-06
B30: RGB, camera captured, 1080p | C30: ='RA-SCC'!AC34 -> -2.249636533e-05 | D30: ='RA-SCC'!AC47 -> -2.32442867e-05 | E30: ='RA-SCC'!AC60 -> -2.773911113e-05 | F30: ='RA-SCC'!AC73 -> -1.874946226e-05
B31: YUV, text & graphics with motion, 1080p | C31: ='RA-SCC'!AC35 -> 0.01842139507 | D31: ='RA-SCC'!AC48 -> 0.05154576982 | E31: ='RA-SCC'!AC61 -> 0.01403915588 | F31: ='RA-SCC'!AC74 -> 0.1202143441
B32: YUV, text & graphics with motion,720p | C32: ='RA-SCC'!AC36 -> 0.009609103381 | D32: ='RA-SCC'!AC49 -> 0.03561405065 | E32: ='RA-SCC'!AC62 -> 0.0004101003965 | F32: ='RA-SCC'!AC75 -> 0.08136799208
B33: YUV, mixed content, 1440p | C33: ='RA-SCC'!AC37 -> 0.0003858553451 | D33: ='RA-SCC'!AC50 -> 0.0003676202067 | E33: ='RA-SCC'!AC63 -> 0.0001790098978 | F33: ='RA-SCC'!AC76 -> 0.0005562305156
B34: YUV, mixed content, 1080p | C34: ='RA-SCC'!AC38 -> 0.0003968034686 | D34: ='RA-SCC'!AC51 -> 0.0003968034686 | E34: ='RA-SCC'!AC64 -> 0.0003968034686 | F34: ='RA-SCC'!AC77 -> 0.0003968034686
B35: YUV, Animation, 720p | C35: ='RA-SCC'!AC39 -> -3.834828242e-05 | D35: ='RA-SCC'!AC52 -> -3.834828242e-05 | E35: ='RA-SCC'!AC65 -> -3.834828242e-05 | F35: ='RA-SCC'!AC78 -> -3.834828242e-05
B36: YUV, camera captured, 1080p | C36: ='RA-SCC'!AC40 -> -2.747851303e-05 | D36: ='RA-SCC'!AC53 -> -2.748915942e-05 | E36: ='RA-SCC'!AC66 -> -2.757320448e-05 | F36: ='RA-SCC'!AC79 -> -2.740511436e-05
B37: Enc Time[%] | C37: ='RA-SCC'!Z82 -> 1.016782696
B38: Dec Time[%] | C38: ='RA-SCC'!Y82 -> 1.021862407
C41: Low Delay B
C42: Bit-rate saving (Total) | D42: Bit-rate saving (Average) | E42: Bit-rate saving (Min) | F42: Bit-rate saving (Max)
B44: RGB, text & graphics with motion, 1080p | C44: ='LB-SCC'!AC29 -> 0.01661723713 | D44: ='LB-SCC'!AC42 -> 0.02618966074 | E44: ='LB-SCC'!AC55 -> 0.008694120678 | F44: ='LB-SCC'!AC68 -> 0.05292401768
B45: RGB, text & graphics with motion,720p | C45: ='LB-SCC'!AC30 -> 0.006941378327 | D45: ='LB-SCC'!AC43 -> 0.0214449654 | E45: ='LB-SCC'!AC56 -> 0.0004809706809 | F45: ='LB-SCC'!AC69 -> 0.0481946969
B46: RGB, mixed content, 1440p | C46: ='LB-SCC'!AC31 -> 0.0001083947118 | D46: ='LB-SCC'!AC44 -> 0.0001085575123 | E46: ='LB-SCC'!AC57 -> 0.0001049605065 | F46: ='LB-SCC'!AC70 -> 0.0001121545181
B47: RGB, mixed content, 1080p | C47: ='LB-SCC'!AC32 -> 8.280450374e-05 | D47: ='LB-SCC'!AC45 -> 8.280450374e-05 | E47: ='LB-SCC'!AC58 -> 8.280450374e-05 | F47: ='LB-SCC'!AC71 -> 8.280450374e-05
B48: RGB, Animation, 720p | C48: ='LB-SCC'!AC33 -> -4.499240667e-05 | D48: ='LB-SCC'!AC46 -> -4.499240667e-05 | E48: ='LB-SCC'!AC59 -> -4.499240667e-05 | F48: ='LB-SCC'!AC72 -> -4.499240667e-05
B49: RGB, camera captured, 1080p | C49: ='LB-SCC'!AC34 -> -6.479318114e-06 | D49: ='LB-SCC'!AC47 -> -1.001693194e-05 | E49: ='LB-SCC'!AC60 -> -3.057775495e-05 | F49: ='LB-SCC'!AC73 -> 1.054389108e-05
B50: YUV, text & graphics with motion, 1080p | C50: ='LB-SCC'!AC35 -> 0.01307188927 | D50: ='LB-SCC'!AC48 -> 0.03259618703 | E50: ='LB-SCC'!AC61 -> 0.010570528 | F50: ='LB-SCC'!AC74 -> 0.07511589463
B51: YUV, text & graphics with motion,720p | C51: ='LB-SCC'!AC36 -> 0.00519045092 | D51: ='LB-SCC'!AC49 -> 0.02292754543 | E51: ='LB-SCC'!AC62 -> 0.0001467830063 | F51: ='LB-SCC'!AC75 -> 0.05393892419
B52: YUV, mixed content, 1440p | C52: ='LB-SCC'!AC37 -> 7.038234427e-05 | D52: ='LB-SCC'!AC50 -> 6.594213482e-05 | E52: ='LB-SCC'!AC63 -> 1.429884064e-05 | F52: ='LB-SCC'!AC76 -> 0.000117585429
B53: YUV, mixed content, 1080p | C53: ='LB-SCC'!AC38 -> -3.888964273e-05 | D53: ='LB-SCC'!AC51 -> -3.888964273e-05 | E53: ='LB-SCC'!AC64 -> -3.888964273e-05 | F53: ='LB-SCC'!AC77 -> -3.888964273e-05
B54: YUV, Animation, 720p | C54: ='LB-SCC'!AC39 -> -2.057551803e-05 | D54: ='LB-SCC'!AC52 -> -2.057551803e-05 | E54: ='LB-SCC'!AC65 -> -2.057551803e-05 | F54: ='LB-SCC'!AC78 -> -2.057551803e-05
B55: YUV, camera captured, 1080p | C55: ='LB-SCC'!AC40 -> -2.786891967e-05 | D55: ='LB-SCC'!AC53 -> -2.646907921e-05 | E55: ='LB-SCC'!AC66 -> -3.701331854e-05 | F55: ='LB-SCC'!AC79 -> -1.592483988e-05
B56: Enc Time[%] | C56: ='LB-SCC'!Z82 -> 1.00448222
B57: Dec Time[%] | C57: ='LB-SCC'!Y82 -> 1.029814678

Sheet AI-SCC
K1: =Summary!I2 -> Anchors (SCM-1.0) | T1: =Summary!I3 -> Tested (Rnnnn)
A2: Class | B2: Sequence | C2: Width | D2: Height | E2: SpP | F2: Bit-depth | G2: FPS | H2: Frames | I2: Total Bits (Uncompressed) | J2: QP | K2: kbps | L2: G/Y MSE | M2: B/U MSE | N2: R/V MSE | O2: Enc T [s] | P2: Dec T [s] | Q2: Enc T [h] | R2: Total Bits (Compressed) | T2: kbps | U2: G/Y MSE | V2: B/U MSE | W2: R/V MSE | X2: Enc T [s] | Y2: Dec T [s] | Z2: Enc T [h] | AA2: Total Bits (Compressed) | AC2: Overall Bit-rate Saving
A3: RGB, text & graphics with motion, 1080p | B3: sc_flyingGraphics_1920x1080_60_8bit_rgb | C3: 1920 | D3: 1080 | E3: 3 | F3: 8 | G3: 60 | H3: 300 | I3: =C3*D3*E3*F3*H3 -> 14929920000 | J3: 0 | K3: =Anchor!B1 -> 185359.416 | O3: =Anchor!F1 -> 12757.36 | P3: =Anchor!G1 -> 67.34 | Q3: =O3/3600 -> 3.543711111 | R3: =K3*1000/$G3*$H3 -> 926797080 | T3: =Test!B1 -> 179069.2672 | X3: =Test!F1 -> 14065.44 | Y3: =Test!G1 -> 62.53 | Z3: =X3/3600 -> 3.907066667 | AA3: =T3*1000/$G3*$H3 -> 895346336 | AC3: =IF(R3,-(AA3-R3)/R3,0) -> 0.03393487601
B4: sc_desktop_1920x1080_60_8bit_rgb | C4: 1920 | D4: 1080 | E4: 3 | F4: 8 | G4: 60 | H4: 600 | I4: =C4*D4*E4*F4*H4 -> 29859840000 | J4: 0 | K4: =Anchor!B2 -> 82522.6528 | O4: =Anchor!F2 -> 18012.29 | P4: =Anchor!G2 -> 98.44 | Q4: 5.003413889 | R4: 825226528 | T4: =Test!B2 -> 70441.8136 | X4: =Test!F2 -> 19472.63 | Y4: =Test!G2 -> 92.79 | Z4: 5.409063889 | AA4: 704418136 | AC4: 0.1463942177
B5: sc_console_1920x1080_60_8bit_rgb | C5: 1920 | D5: 1080 | E5: 3 | F5: 8 | G5: 60 | H5: 600 | I5: 29859840000 | J5: 0 | K5: =Anchor!B3 -> 64274.828 | O5: =Anchor!F3 -> 16324.18 | P5: =Anchor!G3 -> 91.7 | Q5: 4.534494444 | R5: 642748280 | T5: =Test!B3 -> 58817.196 | X5: =Test!F3 -> 17662.46 | Y5: =Test!G3 -> 86.84 | Z5: 4.906238889 | AA5: 588171960 | AC5: 0.08491087677
A6: RGB, text & graphics with motion,720p | B6: sc_web_browsing_1280x720_30_8bit_300_rgb | C6: 1280 | D6: 720 | E6: 3 | F6: 8 | G6: 30 | H6: 300 | I6: 6635520000 | J6: 0 | K6: =Anchor!B4 -> 29148.9648 | O6: =Anchor!F4 -> 4798.37 | P6: =Anchor!G4 -> 24.66 | Q6: 1.332880556 | R6: 291489648 | T6: =Test!B4 -> 26995.7696 | X6: =Test!F4 -> 5027.91 | Y6: =Test!G4 -> 23.75 | Z6: 1.396641667 | AA6: 269957696 | AC6: 0.07386866788
B7: sc_map_1280x720_60_8bit | C7: 1280 | D7: 720 | E7: 3 | F7: 8 | G7: 60 | H7: 600 | I7: 13271040000 | J7: 0 | K7: =Anchor!B5 -> 184834.0944 | O7: =Anchor!F5 -> 14583.39 | P7: =Anchor!G5 -> 90.3 | Q7: 4.050941667 | R7: 1848340944 | T7: =Test!B5 -> 148981.1136 | X7: =Test!F5 -> 15609.11 | Y7: =Test!G5 -> 66.25 | Z7: 4.335863889 | AA7: 1489811136 | AC7: 0.1939738494
B8: sc_programming_1280x720_60_8bit | C8: 1280 | D8: 720 | E8: 3 | F8: 8 | G8: 60 | H8: 600 | I8: 13271040000 | J8: 0 | K8: =Anchor!B6 -> 163766.596 | O8: =Anchor!F6 -> 12794.8 | P8: =Anchor!G6 -> 84.49 | Q8: 3.554111111 | R8: 1637665960 | T8: =Test!B6 -> 162047.6952 | X8: =Test!F6 -> 13966.78 | Y8: =Test!G6 -> 83.45 | Z8: 3.879661111 | AA8: 1620476952 | AC8: 0.01049604035
B9: sc_SlideShow_1280x720_20_8bit_500 | C9: 1280 | D9: 720 | E9: 3 | F9: 8 | G9: 20 | H9: 500 | I9: 11059200000 | J9: 0 | K9: =Anchor!B7 -> 30007.7715 | O9: =Anchor!F7 -> 7942.11 | P9: =Anchor!G7 -> 51.94 | Q9: 2.206141667 | R9: 750194287.5 | T9: =Test!B7 -> 29961.8256 | X9: =Test!F7 -> 8940.69 | Y9: =Test!G7 -> 52.82 | Z9: 2.483525 | AA9: 749045640 | AC9: 0.00153113336
A10: RGB, mixed content, 1440p | B10: Basketball_Screen_2560x1440_60p_8b444 | C10: 2560 | D10: 1440 | E10: 3 | F10: 8 | G10: 60 | H10: 300 | I10: 26542080000 | J10: 0 | K10: =Anchor!B8 -> 629633.7408 | O10: =Anchor!F8 -> 23062.7 | P10: =Anchor!G8 -> 163.49 | Q10: 6.406305556 | R10: 3148168704 | T10: =Test!B8 -> 624889.6512 | X10: =Test!F8 -> 25523.82 | Y10: =Test!G8 -> 161.56 | Z10: 7.08995 | AA10: 3124448256 | AC10: 0.007534681343
B11: MissionControlClip2_2560x1440_60p_8b444 | C11: 2560 | D11: 1440 | E11: 3 | F11: 8 | G11: 60 | H11: 300 | I11: 26542080000 | J11: 0 | K11: =Anchor!B9 -> 967457.0992 | O11: =Anchor!F9 -> 25206.46 | P11: =Anchor!G9 -> 227.53 | Q11: 7.001794444 | R11: 4837285496 | T11: =Test!B9 -> 961744.2208 | X11: =Test!F9 -> 28260.04 | Y11: =Test!G9 -> 224.95 | Z11: 7.850011111 | AA11: 4808721104 | AC11: 0.005905045717
A12: RGB, mixed content, 1080p | B12: MissionControlClip3_1920x1080_60p_8b444 | C12: 1920 | D12: 1080 | E12: 3 | F12: 8 | G12: 60 | H12: 600 | I12: 29859840000 | J12: 0 | K12: =Anchor!B10 -> 439716.2008 | O12: =Anchor!F10 -> 25620.48 | P12: =Anchor!G10 -> 223.93 | Q12: 7.1168 | R12: 4397162008 | T12: =Test!B10 -> 437172.0528 | X12: =Test!F10 -> 28147.93 | Y12: =Test!G10 -> 221.08 | Z12: 7.818869444 | AA12: 4371720528 | AC12: 0.005785886432
A13: RGB, Animation, 720p | B13: sc_robot_1280x720_30_8bit_300 | C13: 1280 | D13: 720 | E13: 3 | F13: 8 | G13: 30 | H13: 300 | I13: 6635520000 | J13: 0 | K13: =Anchor!B11 -> 272693.8496 | O13: =Anchor!F11 -> 13307.65 | P13: =Anchor!G11 -> 96.26 | Q13: 3.696569444 | R13: 2726938496 | T13: =Test!B11 -> 272704.872 | X13: =Test!F11 -> 15038.33 | Y13: =Test!G11 -> 95.75 | Z13: 4.177313889 | AA13: 2727048720 | AC13: -4.042042025e-05
A14: RGB, camera captured, 1080p | B14: EBURainFruits_1920x1080_50_10bit_444 | C14: 1920 | D14: 1080 | E14: 3 | F14: 8 | G14: 50 | H14: 250 | I14: 12441600000 | J14: 0 | K14: =Anchor!B12 -> 1001414.717 | O14: =Anchor!F12 -> 18951.01 | P14: =Anchor!G12 -> 175.6 | Q14: 5.264169444 | R14: 5007073584 | T14: =Test!B12 -> 1001445.41 | X14: =Test!F12 -> 22100.2 | Y14: =Test!G12 -> 174.45 | Z14: 6.138944444 | AA14: 5007227048 | AC14: -3.064943972e-05
B15: Kimono1_1920x1080_24_10bit_444 | C15: 1920 | D15: 1080 | E15: 3 | F15: 8 | G15: 24 | H15: 120 | I15: 5971968000 | J15: 0 | K15: =Anchor!B13 -> 635643.8464 | O15: =Anchor!F13 -> 10968.52 | P15: =Anchor!G13 -> 102.72 | Q15: 3.046811111 | R15: 3178219232 | T15: =Test!B13 -> 635667.8528 | X15: =Test!F13 -> 12316.83 | Y15: =Test!G13 -> 101.36 | Z15: 3.421341667 | AA15: 3178339264 | AC15: -3.776706112e-05
A16: YUV, text & graphics with motion, 1080p | B16: sc_flyingGraphics_1920x1080_60_8bit_444 | C16: 1920 | D16: 1080 | E16: 3 | F16: 8 | G16: 60 | H16: 300 | I16: 14929920000 | J16: 0 | K16: =Anchor!B14 -> 169844.0208 | O16: =Anchor!F14 -> 12258.45 | P16: =Anchor!G14 -> 66.2 | Q16: 3.405125 | R16: 849220104 | T16: =Test!B14 -> 165241.1472 | X16: =Test!F14 -> 13416.41 | Y16: =Test!G14 -> 63.34 | Z16: 3.726780556 | AA16: 826205736 | AC16: 0.02710059252
B17: sc_desktop_1920x1080_60_8bit_444 | C17: 1920 | D17: 1080 | E17: 3 | F17: 8 | G17: 60 | H17: 600 | I17: 29859840000 | J17: 0 | K17: =Anchor!B15 -> 84712.7928 | O17: =Anchor!F15 -> 17983.84 | P17: =Anchor!G15 -> 100.31 | Q17: 4.995511111 | R17: 847127928 | T17: =Test!B15 -> 69955.2432 | X17: =Test!F15 -> 19338.02 | Y17: =Test!G15 -> 91.83 | Z17: 5.371672222 | AA17: 699552432 | AC17: 0.1742068596
B18: sc_console_1920x1080_60_8bit_444 | C18: 1920 | D18: 1080 | E18: 3 | F18: 8 | G18: 60 | H18: 600 | I18: 29859840000 | J18: 0 | K18: =Anchor!B16 -> 72272.9152 | O18: =Anchor!F16 -> 16503.08 | P18: =Anchor!G16 -> 95.7 | Q18: 4.584188889 | R18: 722729152 | T18: =Test!B16 -> 65005.2808 | X18: =Test!F16 -> 17924.12 | Y18: =Test!G16 -> 86.49 | Z18: 4.978922222 | AA18: 650052808 | AC18: 0.1005582019
A19: YUV, text & graphics with motion,720p | B19: sc_web_browsing_1280x720_30_8bit_300_444_r1 | C19: 1280 | D19: 720 | E19: 3 | F19: 8 | G19: 30 | H19: 300 | I19: 6635520000 | J19: 0 | K19: =Anchor!B17 -> 25345.8472 | O19: =Anchor!F17 -> 4662.17 | P19: =Anchor!G17 -> 23.86 | Q19: 1.295047222 | R19: 253458472 | T19: =Test!B17 -> 22849.6216 | X19: =Test!F17 -> 5083.22 | Y19: =Test!G17 -> 22.87 | Z19: 1.412005556 | AA19: 228496216 | AC19: 0.0984865718
B20: sc_map_1280x720_60_8bit_444 | C20: 1280 | D20: 720 | E20: 3 | F20: 8 | G20: 60 | H20: 600 | I20: 13271040000 | J20: 0 | K20: =Anchor!B18 -> 154034.1384 | O20: =Anchor!F18 -> 13905.63 | P20: =Anchor!G18 -> 85.62 | Q20: 3.862675 | R20: 1540341384 | T20: =Test!B18 -> 128629.6016 | X20: =Test!F18 -> 14891.7 | Y20: =Test!G18 -> 64.52 | Z20: 4.136583333 | AA20: 1286296016 | AC20: 0.1649279638
B21: sc_programming_1280x720_60_8bit_444 | C21: 1280 | D21: 720 | E21: 3 | F21: 8 | G21: 60 | H21: 600 | I21: 13271040000 | J21: 0 | K21: =Anchor!B19 -> 137475.8848 | O21: =Anchor!F19 -> 12140.16 | P21: =Anchor!G19 -> 80.99 | Q21: 3.372266667 | R21: 1374758848 | T21: =Test!B19 -> 136540.768 | X21: =Test!F19 -> 13065.19 | Y21: =Test!G19 -> 80.99 | Z21: 3.629219444 | AA21: 1365407680 | AC21: 0.006802042419
B22: sc_SlideShow_1280x720_20_8bit_500_444 | C22: 1280 | D22: 720 | E22: 3 | F22: 8 | G22: 20 | H22: 500 | I22: 11059200000 | J22: 0 | K22: =Anchor!B20 -> 24250.9686 | O22: =Anchor!F20 -> 7001.73 | P22: =Anchor!G20 -> 49.24 | Q22: 1.944925 | R22: 606274215 | T22: =Test!B20 -> 24218.3955 | X22: =Test!F20 -> 7330.98 | Y22: =Test!G20 -> 49.62 | Z22: 2.036383333 | AA22: 605459887.5 | AC22: 0.001343166969
A23: YUV, mixed content, 1440p | B23: Basketball_Screen_2560x1440_60p_8b444 | C23: 2560 | D23: 1440 | E23: 3 | F23: 8 | G23: 60 | H23: 300 | I23: 26542080000 | J23: 0 | K23: =Anchor!B21 -> 519504.5264 | O23: =Anchor!F21 -> 21492.65 | P23: =Anchor!G21 -> 158.31 | Q23: 5.970180556 | R23: 2597522632 | T23: =Test!B21 -> 516042.2896 | X23: =Test!F21 -> 23511.53 | Y23: =Test!G21 -> 155.6 | Z23: 6.530980556 | AA23: 2580211448 | AC23: 0.006664497851
B24: MissionControlClip2_2560x1440_60p_8b444 | C24: 2560 | D24: 1440 | E24: 3 | F24: 8 | G24: 60 | H24: 300 | I24: 26542080000 | J24: 0 | K24: =Anchor!B22 -> 708285.1824 | O24: =Anchor!F22 -> 22856.13 | P24: =Anchor!G22 -> 203.44 | Q24: 6.348925 | R24: 3541425912 | T24: =Test!B22 -> 707613.3216 | X24: =Test!F22 -> 24898.9 | Y24: =Test!G22 -> 201.79 | Z24: 6.916361111 | AA24: 3538066608 | AC24: 0.0009485738467
A25: YUV, mixed content, 1080p | B25: MissionControlClip3_1920x1080_60p_8b444 | C25: 1920 | D25: 1080 | E25: 3 | F25: 8 | G25: 60 | H25: 600 | I25: 29859840000 | J25: 0 | K25: =Anchor!B23 -> 338214.3256 | O25: =Anchor!F23 -> 24016.6 | P25: =Anchor!G23 -> 203.39 | Q25: 6.671277778 | R25: 3382143256 | T25: =Test!B23 -> 337078.068 | X25: =Test!F23 -> 25805.81 | Y25: =Test!G23 -> 201.75 | Z25: 7.168280556 | AA25: 3370780680 | AC25: 0.003359578569
A26: YUV, Animation, 720p | B26: sc_robot_1280x720_30_8bit_300_444 | C26: 1280 | D26: 720 | E26: 3 | F26: 8 | G26: 30 | H26: 300 | I26: 6635520000 | J26: 0 | K26: =Anchor!B24 -> 216583.0472 | O26: =Anchor!F24 -> 12277.26 | P26: =Anchor!G24 -> 88.79 | Q26: 3.41035 | R26: 2165830472 | T26: =Test!B24 -> 216591.42 | X26: =Test!F24 -> 12935.7 | Y26: =Test!G24 -> 87.63 | Z26: 3.59325 | AA26: 2165914200 | AC26: -3.865861206e-05
A27: YUV, camera captured, 1080p | B27: EBURainFruits_1920x1080_50_10bit_444 | C27: 1920 | D27: 1080 | E27: 3 | F27: 8 | G27: 50 | H27: 250 | I27: 12441600000 | J27: 0 | K27: =Anchor!B25 -> 790516.152 | O27: =Anchor!F25 -> 18176.3 | P27: =Anchor!G25 -> 173.64 | Q27: =O27/3600 -> 5.048972222 | R27: =K27*1000/$G27*$H27 -> 3952580760 | T27: =Test!B25 -> 790565.8624 | X27: =Test!F25 -> 20129.92 | Y27: =Test!G25 -> 170.29 | Z27: =X27/3600 -> 5.591644444 | AA27: =T27*1000/$G27*$H27 -> 3952829312 | AC27: =IF(R27,-(AA27-R27)/R27,0) -> -6.288347161e-05
B28: Kimono1_1920x1080_24_10bit_444 | C28: 1920 | D28: 1080 | E28: 3 | F28: 8 | G28: 24 | H28: 120 | I28: 5971968000 | J28: 0 | K28: =Anchor!B26 -> 531227.0272 | O28: =Anchor!F26 -> 9212.77 | P28: =Anchor!G26 -> 95.43 | Q28: 2.559102778 | R28: 2656135136 | T28: =Test!B26 -> 531249.7616 | X28: =Test!F26 -> 11043.34 | Y28: =Test!G26 -> 93.7 | Z28: 3.067594444 | AA28: 2656248808 | AC28: -4.279601533e-05
A29: Total | B29: =$A3 -> RGB, text & graphics with motion, 1080p | I29: =SUM(I3:I5) -> 74649600000 | K29: =SUM(K3:K5) -> 332156.8968 | R29: =SUM(R3:R5) -> 2394771888 | T29: =SUM(T3:T5) -> 308328.2768 | AA29: =SUM(AA3:AA5) -> 2187936432 | AC29: =IF(R29,-(AA29-R29)/R29,0) -> 0.08636958578
B30: =$A6 -> RGB, text & graphics with motion,720p | I30: =SUM(I6:I9) -> 44236800000 | K30: =SUM(K6:K9) -> 407757.4267 | R30: =SUM(R6:R9) -> 4527690840 | T30: =SUM(T6:T9) -> 367986.404 | AA30: =SUM(AA6:AA9) -> 4129291424 | AC30: 0.08799174449
B31: =$A10 -> RGB, mixed content, 1440p | I31: =SUM(I10:I11) -> 53084160000 | K31: =SUM(K10:K11) -> 1597090.84 | R31: =SUM(R10:R11) -> 7985454200 | T31: =SUM(T10:T11) -> 1586633.872 | AA31: =SUM(AA10:AA11) -> 7933169360 | AC31: 0.006547509846
B32: =$A12 -> RGB, mixed content, 1080p | I32: =SUM(I12:I12) -> 29859840000 | K32: =SUM(K12:K12) -> 439716.2008 | R32: =SUM(R12:R12) -> 4397162008 | T32: =SUM(T12:T12) -> 437172.0528 | AA32: =SUM(AA12:AA12) -> 4371720528 | AC32: 0.005785886432
B33: =$A13 -> RGB, Animation, 720p | I33: =SUM(I13:I13) -> 6635520000 | K33: =SUM(K13:K13) -> 272693.8496 | R33: =SUM(R13:R13) -> 2726938496 | T33: =SUM(T13:T13) -> 272704.872 | AA33: =SUM(AA13:AA13) -> 2727048720 | AC33: -4.042042025e-05
B34: RGB, camera captured, 1080p | I34: =SUM(I14:I15) -> 18413568000 | K34: =SUM(K14:K15) -> 1637058.563 | R34: =SUM(R14:R15) -> 8185292816 | T34: =SUM(T14:T15) -> 1637113.262 | AA34: =SUM(AA14:AA15) -> 8185566312 | AC34: -3.34130991e-05
B35: =$A16 -> YUV, text & graphics with motion, 1080p | I35: =SUM(I16:I18) -> 74649600000 | K35: =SUM(K16:K18) -> 326829.7288 | R35: =SUM(R16:R18) -> 2419077184 | T35: =SUM(T16:T18) -> 300201.6712 | AA35: =SUM(AA16:AA18) -> 2175810976 | AC35: 0.1005615735
B36: =$A19 -> YUV, text & graphics with motion,720p | I36: =SUM(I19:I22) -> 44236800000 | K36: =SUM(K19:K22) -> 341106.839 | R36: =SUM(R19:R22) -> 3774832919 | T36: =SUM(T19:T22) -> 312238.3867 | AA36: =SUM(AA19:AA22) -> 3485659800 | AC36: 0.07660554141
B37: =$A23 -> YUV, mixed content, 1440p | I37: =SUM(I23:I24) -> 53084160000 | K37: =SUM(K23:K24) -> 1227789.709 | R37: =SUM(R23:R24) -> 6138948544 | T37: =SUM(T23:T24) -> 1223655.611 | AA37: =SUM(AA23:AA24) -> 6118278056 | AC37: 0.003367105597
B38: =$A25 -> YUV, mixed content, 1080p | I38: =SUM(I25:I25) -> 29859840000 | K38: =SUM(K25:K25) -> 338214.3256 | R38: =SUM(R25:R25) -> 3382143256 | T38: =SUM(T25:T25) -> 337078.068 | AA38: =SUM(AA25:AA25) -> 3370780680 | AC38: 0.003359578569
B39: =$A26 -> YUV, Animation, 720p | I39: =SUM(I26:I26) -> 6635520000 | K39: =SUM(K26:K26) -> 216583.0472 | R39: =SUM(R26:R26) -> 2165830472 | T39: =SUM(T26:T26) -> 216591.42 | AA39: =SUM(AA26:AA26) -> 2165914200 | AC39: -3.865861206e-05
B40: YUV, camera captured, 1080p | I40: =SUM(I27:I28) -> 18413568000 | K40: =SUM(K27:K28) -> 1321743.179 | R40: =SUM(R27:R28) -> 6608715896 | T40: =SUM(T27:T28) -> 1321815.624 | AA40: =SUM(AA27:AA28) -> 6609078120 | AC40: -5.481004263e-05
B41: Total Average | I41: =SUM(I3:I28) -> 453758976000 | K41: =SUM(K3:K28) -> 8458740.606 | R41: =SUM(R3:R28) -> 5.470685852e+10 | T41: =SUM(T3:T28) -> 8321519.521 | AA41: =SUM(AA3:AA28) -> 5.346025461e+10 | AC41: 0.02278697671
A42: Average | B42: RGB, text & graphics with motion, 1080p | AC42: =AVERAGE(AC3:AC5) -> 0.0884133235
B43: RGB, text & graphics with motion,720p | AC43: =AVERAGE(AC6:AC9) -> 0.06996742276
B44: RGB, mixed content, 1440p | AC44: =AVERAGE(AC10:AC11) -> 0.00671986353
B45: RGB, mixed content, 1080p | AC45: =AVERAGE(AC12:AC12) -> 0.005785886432
B46: RGB, Animation, 720p | AC46: =AVERAGE(AC13:AC13) -> -4.042042025e-05
B47: RGB, camera captured, 1080p | AC47: =AVERAGE(AC14:AC15) -> -3.420825042e-05
B48: YUV, text & graphics with motion, 1080p | AC48: =AVERAGE(AC16:AC18) -> 0.1006218847
B49: YUV, text & graphics with motion,720p | AC49: =AVERAGE(AC19:AC22) -> 0.06788993624
B50: YUV, mixed content, 1440p | AC50: =AVERAGE(AC23:AC24) -> 0.003806535849
B51: YUV, mixed content, 1080p | AC51: =AVERAGE(AC25:AC25) -> 0.003359578569
B52: YUV, Animation, 720p | AC52: =AVERAGE(AC26:AC26) -> -3.865861206e-05
B53: YUV, camera captured, 1080p | AC53: =AVERAGE(AC27:AC28) -> -5.283974347e-05
B54: Overall Average | AC54: =AVERAGE(AC3:AC28) -> 0.04417231343
A55: Min | B55: RGB, text & graphics with motion, 1080p | K55: =MIN(K$3:K$5) -> 64274.828 | R55: =MIN(R$3:R$5) -> 642748280 | T55: =MIN(T$3:T$5) -> 58817.196 | AA55: =MIN(AA$3:AA$5) -> 588171960 | AC55: =MIN(AC$3:AC$5) -> 0.03393487601
B56: RGB, text & graphics with motion,720p | K56: =MIN(K$6:K$9) -> 29148.9648 | R56: =MIN(R$6:R$9) -> 291489648 | T56: =MIN(T$6:T$9) -> 26995.7696 | AA56: =MIN(AA$6:AA$9) -> 269957696 | AC56: =MIN(AC$6:AC$9) -> 0.00153113336
B57: RGB, mixed content, 1440p | K57: =MIN(K$10:K$11) -> 629633.7408 | R57: =MIN(R$10:R$11) -> 3148168704 | T57: =MIN(T$10:T$11) -> 624889.6512 | AA57: =MIN(AA$10:AA$11) -> 3124448256 | AC57: =MIN(AC$10:AC$11) -> 0.005905045717
B58: RGB, mixed content, 1080p | K58: =MIN(K$12:K$12) -> 439716.2008 | R58: =MIN(R$12:R$12) -> 4397162008 | T58: =MIN(T$12:T$12) -> 437172.0528 | AA58: =MIN(AA$12:AA$12) -> 4371720528 | AC58: =MIN(AC$12:AC$12) -> 0.005785886432
B59: RGB, Animation, 720p | K59: =MIN(K$13:K$13) -> 272693.8496 | R59: =MIN(R$13:R$13) -> 2726938496 | T59: =MIN(T$13:T$13) -> 272704.872 | AA59: =MIN(AA$13:AA$13) -> 2727048720 | AC59: =MIN(AC$13:AC$13) -> -4.042042025e-05
B60: RGB, camera captured, 1080p | K60: =MIN(K14:K15) -> 635643.8464 | R60: =MIN(R14:R15) -> 3178219232 | T60: =MIN(T14:T15) -> 635667.8528 | AA60: =MIN(AA14:AA15) -> 3178339264 | AC60: =MIN(AC14:AC15) -> -3.776706112e-05
B61: YUV, text & graphics with motion, 1080p | K61: =MIN(K$16:K$18) -> 72272.9152 | R61: =MIN(R$16:R$18) -> 722729152 | T61: =MIN(T$16:T$18) -> 65005.2808 | AA61: =MIN(AA$16:AA$18) -> 650052808 | AC61: =MIN(AC$16:AC$18) -> 0.02710059252
B62: YUV, text & graphics with motion,720p | K62: =MIN(K$19:K$22) -> 24250.9686 | R62: =MIN(R$19:R$22) -> 253458472 | T62: =MIN(T$19:T$22) -> 22849.6216 | AA62: =MIN(AA$19:AA$22) -> 228496216 | AC62: =MIN(AC$19:AC$22) -> 0.001343166969
B63: YUV, mixed content, 1440p | K63: =MIN(K$23:K$24) -> 519504.5264 | R63: =MIN(R$23:R$24) -> 2597522632 | T63: =MIN(T$23:T$24) -> 516042.2896 | AA63: =MIN(AA$23:AA$24) -> 2580211448 | AC63: =MIN(AC$23:AC$24) -> 0.0009485738467
B64: YUV, mixed content, 1080p | K64: =MIN(K$25:K$25) -> 338214.3256 | R64: =MIN(R$25:R$25) -> 3382143256 | T64: =MIN(T$25:T$25) -> 337078.068 | AA64: =MIN(AA$25:AA$25) -> 3370780680 | AC64: =MIN(AC$25:AC$25) -> 0.003359578569
B65: YUV, Animation, 720p | K65: =MIN(K$26:K$26) -> 216583.0472 | R65: =MIN(R$26:R$26) -> 2165830472 | T65: =MIN(T$26:T$26) -> 216591.42 | AA65: =MIN(AA$26:AA$26) -> 2165914200 | AC65: =MIN(AC$26:AC$26) -> -3.865861206e-05
B66: YUV, camera captured, 1080p | K66: =MIN(K27:K28) -> 531227.0272 | R66: =MIN(R27:R28) -> 2656135136 | T66: =MIN(T27:T28) -> 531249.7616 | AA66: =MIN(AA27:AA28) -> 2656248808 | AC66: =MIN(AC27:AC28) -> -6.288347161e-05
B67: Overall Min | K67: =MIN(K$3:K$28) -> 24250.9686 | R67: =MIN(R$3:R$28) -> 253458472 | T67: =MIN(T$3:T$28) -> 22849.6216 | AA67: =MIN(AA$3:AA$28) -> 228496216 | AC67: =MIN(AC$3:AC$28) -> -6.288347161e-05
A68: Max | B68: RGB, text & graphics with motion, 1080p | K68: =MAX(K$3:K$5) -> 185359.416 | R68: =MAX(R$3:R$5) -> 926797080 | T68: =MAX(T$3:T$5) -> 179069.2672 | AA68: =MAX(AA$3:AA$5) -> 895346336 | AC68: =MAX(AC$3:AC$5) -> 0.1463942177
B69: RGB, text & graphics with motion,720p | K69: =MAX(K$6:K$9) -> 184834.0944 | R69: =MAX(R$6:R$9) -> 1848340944 | T69: =MAX(T$6:T$9) -> 162047.6952 | AA69: =MAX(AA$6:AA$9) -> 1620476952 | AC69: =MAX(AC$6:AC$9) -> 0.1939738494
B70: RGB, mixed content, 1440p | K70: =MAX(K$10:K$11) -> 967457.0992 | R70: =MAX(R$10:R$11) -> 4837285496 | T70: =MAX(T$10:T$11) -> 961744.2208 | AA70: =MAX(AA$10:AA$11) -> 4808721104 | AC70: =MAX(AC$10:AC$11) -> 0.007534681343
B71: RGB, mixed content, 1080p | K71: =MAX(K$12:K$12) -> 439716.2008 | R71: =MAX(R$12:R$12) -> 4397162008 | T71: =MAX(T$12:T$12) -> 437172.0528 | AA71: =MAX(AA$12:AA$12) -> 4371720528 | AC71: =MAX(AC$12:AC$12) -> 0.005785886432
B72: RGB, Animation, 720p | K72: =MAX(K$13:K$13) -> 272693.8496 | R72: =MAX(R$13:R$13) -> 2726938496 | T72: =MAX(T$13:T$13) -> 272704.872 | AA72: =MAX(AA$13:AA$13) -> 2727048720 | AC72: =MAX(AC$13:AC$13) -> -4.042042025e-05
B73: RGB, camera captured, 1080p | K73: =MAX(K14:K15) -> 1001414.717 | R73: =MAX(R14:R15) -> 5007073584 | T73: =MAX(T14:T15) -> 1001445.41 | AA73: =MAX(AA14:AA15) -> 5007227048 | AC73: =MAX(AC14:AC15) -> -3.064943972e-05
B74: YUV, text & graphics with motion, 1080p | K74: =MAX(K$16:K$18) -> 169844.0208 | R74: =MAX(R$16:R$18) -> 849220104 | T74: =MAX(T$16:T$18) -> 165241.1472 | AA74: =MAX(AA$16:AA$18) -> 826205736 | AC74: =MAX(AC$16:AC$18) -> 0.1742068596
B75: YUV, text & graphics with motion,720p | K75: =MAX(K$19:K$22) -> 154034.1384 | R75: =MAX(R$19:R$22) -> 1540341384 | T75: =MAX(T$19:T$22) -> 136540.768 | AA75: =MAX(AA$19:AA$22) -> 1365407680 | AC75: =MAX(AC$19:AC$22) -> 0.1649279638
B76: YUV, mixed content, 1440p | K76: =MAX(K$23:K$24) -> 708285.1824 | R76: =MAX(R$23:R$24) -> 3541425912 | T76: =MAX(T$23:T$24) -> 707613.3216 | AA76: =MAX(AA$23:AA$24) -> 3538066608 | AC76: =MAX(AC$23:AC$24) -> 0.006664497851
B77: YUV, mixed content, 1080p | K77: =MAX(K$25:K$25) -> 338214.3256 | R77: =MAX(R$25:R$25) -> 3382143256 | T77: =MAX(T$25:T$25) -> 337078.068 | AA77: =MAX(AA$25:AA$25) -> 3370780680 | AC77: =MAX(AC$25:AC$25) -> 0.003359578569
B78: YUV, Animation, 720p | K78: =MAX(K$26:K$26) -> 216583.0472 | R78: =MAX(R$26:R$26) -> 2165830472 | T78: =MAX(T$26:T$26) -> 216591.42 | AA78: =MAX(AA$26:AA$26) -> 2165914200 | AC78: =MAX(AC$26:AC$26) -> -3.865861206e-05
B79: YUV, camera captured, 1080p | K79: =MAX(K27:K28) -> 790516.152 | R79: =MAX(R27:R28) -> 3952580760 | T79: =MAX(T27:T28) -> 790565.8624 | AA79: =MAX(AA27:AA28) -> 3952829312 | AC79: =MAX(AC27:AC28) -> -4.279601533e-05
B80: Overall Max | K80: =MAX(K$3:K$28) -> 1001414.717 | R80: =MAX(R$3:R$28) -> 5007073584 | T80: =MAX(T$3:T$28) -> 1001445.41 | AA80: =MAX(AA$3:AA$28) -> 5007227048 | AC80: =MAX(AC$3:AC$28) -> 0.1939738494
B81: Time geomean | P81: =GEOMEAN(P3:P28) -> 96.79479372 | Q81: =GEOMEAN(O3:O28) -> 13911.67704 | Y81: =GEOMEAN(Y3:Y28) -> 92.33079423 | Z81: =GEOMEAN(X3:X28) -> 15244.95505
B82: Time ratio | Y82: =Y81/P81 -> 0.9538818224 | Z82: =Z81/Q81 -> 1.095838769
B83: Time sum (hours) | P83: =SUM(P3:P28)/3600 -> 0.8120333333 | Q83: =SUM(Q3:Q28) -> 110.2266917 | Y83: =SUM(Y3:Y28)/3600 -> 0.7827777778 | Z83: =SUM(Z3:Z28) -> 120.9741694

Sheet RA-SCC
K1: =Summary!I2 -> Anchors (SCM-1.0) | T1: =Summary!I3 -> Tested (Rnnnn)
A2: Class | B2: Sequence | C2: Width | D2: Height | E2: SpP | F2: Bit-depth | G2: FPS | H2: Frames | I2: Total Bits (Uncompressed) | J2: QP | K2: kbps | L2: G/Y MSE | M2: B/U MSE | N2: R/V MSE | O2: Enc T [s] | P2: Dec T [s] | Q2: Enc T [h] | R2: Total Bits (Compressed) | T2: kbps | U2: G/Y MSE | V2: B/U MSE | W2: R/V MSE | X2: Enc T [s] | Y2: Dec T [s] | Z2: Enc T [h] | AA2: Total Bits (Compressed) | AC2: Overall Bit-rate Saving
A3: RGB, text & graphics with motion, 1080p | B3: sc_flyingGraphics_1920x1080_60_8bit_rgb | C3: 1920 | D3: 1080 | E3: 3 | F3: 8 | G3: 60 | H3: 300 | I3: =C3*D3*E3*F3*H3 -> 14929920000 | J3: 0 | K3: =Anchor!B27 -> 154318.1504 | O3: =Anchor!F27 -> 104006.41 | P3: =Anchor!G27 -> 64.18 | Q3: =O3/3600 -> 28.89066944 | R3: =K3*1000/$G3*$H3 -> 771590752 | T3: =Test!B27 -> 151478.08 | X3: =Test!F27 -> 104153.47 | Y3: =Test!G27 -> 62.46 | Z3: =X3/3600 -> 28.93151944 | AA3: =T3*1000/$G3*$H3 -> 757390400 | AC3: =IF(R3,-(AA3-R3)/R3,0) -> 0.01840399456
B4: sc_desktop_1920x1080_60_8bit_rgb | C4: 1920 | D4: 1080 | E4: 3 | F4: 8 | G4: 60 | H4: 600 | I4: =C4*D4*E4*F4*H4 -> 29859840000 | J4: 0 | K4: =Anchor!B28 -> 2689.4976 | O4: =Anchor!F28 -> 23609.73 | P4: =Anchor!G28 -> 46.71 | Q4: 6.558258333 | R4: 26894976 | T4: =Test!B28 -> 2432.7848 | X4: =Test!F28 -> 24016.66 | Y4: =Test!G28 -> 48.87 | Z4: 6.671294444 | AA4: 24327848 | AC4: 0.09545009447
B5: sc_console_1920x1080_60_8bit_rgb | C5: 1920 | D5: 1080 | E5: 3 | F5: 8 | G5: 60 | H5: 600 | I5: 29859840000 | J5: 0 | K5: =Anchor!B29 -> 10703.224 | O5: =Anchor!F29 -> 52370.05 | P5: =Anchor!G29 -> 48.54 | Q5: 14.54723611 | R5: 107032240 | T5: =Test!B29 -> 10527.604 | X5: =Test!F29 -> 52900.32 | Y5: =Test!G29 -> 50.68 | Z5: 14.69453333 | AA5: 105276040 | AC5: 0.0164081402
A6: RGB, text & graphics with motion,720p | B6: sc_web_browsing_1280x720_30_8bit_300_rgb | C6: 1280 | D6: 720 | E6: 3 | F6: 8 | G6: 30 | H6: 300 | I6: 6635520000 | J6: 0 | K6: =Anchor!B30 -> 1361.1232 | O6: =Anchor!F30 -> 2988.92 | P6: =Anchor!G30 -> 10.61 | Q6: 0.8302555556 | R6: 13611232 | T6: =Test!B30 -> 1281.7352 | X6: =Test!F30 -> 3073.01 | Y6: =Test!G30 -> 11.15 | Z6: 0.8536138889 | AA6: 12817352 | AC6: 0.05832535953
B7: sc_map_1280x720_60_8bit | C7: 1280 | D7: 720 | E7: 3 | F7: 8 | G7: 60 | H7: 600 | I7: 13271040000 | J7: 0 | K7: =Anchor!B31 -> 13063.0128 | O7: =Anchor!F31 -> 15048.15 | P7: =Anchor!G31 -> 24.68 | Q7: 4.180041667 | R7: 130630128 | T7: =Test!B31 -> 12134.456 | X7: =Test!F31 -> 15238.33 | Y7: =Test!G31 -> 25.09 | Z7: 4.232869444 | AA7: 121344560 | AC7: 0.07108289751
B8: sc_programming_1280x720_60_8bit | C8: 1280 | D8: 720 | E8: 3 | F8: 8 | G8: 60 | H8: 600 | I8: 13271040000 | J8: 0 | K8: =Anchor!B32 -> 62082.268 | O8: =Anchor!F32 -> 47337.94 | P8: =Anchor!G32 -> 47.93 | Q8: 13.14942778 | R8: 620822680 | T8: =Test!B32 -> 62029.6056 | X8: =Test!F32 -> 48591.58 | Y8: =Test!G32 -> 48.83 | Z8: 13.49766111 | AA8: 620296056 | AC8: 0.0008482679789
B9: sc_SlideShow_1280x720_20_8bit_500 | C9: 1280 | D9: 720 | E9: 3 | F9: 8 | G9: 20 | H9: 500 | I9: 11059200000 | J9: 0 | K9: =Anchor!B33 -> 7606.6 | O9: =Anchor!F33 -> 25312.24 | P9: =Anchor!G33 -> 26.48 | Q9: 7.031177778 | R9: 190165000 | T9: =Test!B33 -> 7597.1555 | X9: =Test!F33 -> 25045.95 | Y9: =Test!G33 -> 27.31 | Z9: 6.957208333 | AA9: 189928887.5 | AC9: 0.00124161912
A10: RGB, mixed content, 1440p | B10: Basketball_Screen_2560x1440_60p_8b444 | C10: 2560 | D10: 1440 | E10: 3 | F10: 8 | G10: 60 | H10: 300 | I10: 26542080000 | J10: 0 | K10: =Anchor!B34 -> 136310.5888 | O10: =Anchor!F34 -> 37493.19 | P10: =Anchor!G34 -> 59.1 | Q10: 10.414775 | R10: 681552944 | T10: =Test!B34 -> 136227.8544 | X10: =Test!F34 -> 36930.16 | Y10: =Test!G34 -> 61.06 | Z10: 10.25837778 | AA10: 681139272 | AC10: 0.0006069550482
B11: MissionControlClip2_2560x1440_60p_8b444 | C11: 2560 | D11: 1440 | E11: 3 | F11: 8 | G11: 60 | H11: 300 | I11: 26542080000 | J11: 0 | K11: =Anchor!B35 -> 121327.9008 | O11: =Anchor!F35 -> 45412.03 | P11: =Anchor!G35 -> 64.65 | Q11: 12.61445278 | R11: 606639504 | T11: =Test!B35 -> 121242.0928 | X11: =Test!F35 -> 46054.5 | Y11: =Test!G35 -> 66.61 | Z11: 12.79291667 | AA11: 606210464 | AC11: 0.0007072404569
A12: RGB, mixed content, 1080p | B12: MissionControlClip3_1920x1080_60p_8b444 | C12: 1920 | D12: 1080 | E12: 3 | F12: 8 | G12: 60 | H12: 600 | I12: 29859840000 | J12: 0 | K12: =Anchor!B36 -> 65378.6416 | O12: =Anchor!F36 -> 44706.59 | P12: =Anchor!G36 -> 70.91 | Q12: 12.41849722 | R12: 653786416 | T12: =Test!B36 -> 65333.7032 | X12: =Test!F36 -> 45062.43 | Y12: =Test!G36 -> 73.17 | Z12: 12.51734167 | AA12: 653337032 | AC12: 0.0006873559759
A13: RGB, Animation, 720p | B13: sc_robot_1280x720_30_8bit_300 | C13: 1280 | D13: 720 | E13: 3 | F13: 8 | G13: 30 | H13: 300 | I13: 6635520000 | J13: 0 | K13: =Anchor!B37 -> 165448.3424 | O13: =Anchor!F37 -> 49251.71 | P13: =Anchor!G37 -> 69.6 | Q13: 13.68103056 | R13: 1654483424 | T13: =Test!B37 -> 165447.9704 | X13: =Test!F37 -> 51294.42 | Y13: =Test!G37 -> 69.6 | Z13: 14.24845 | AA13: 1654479704 | AC13: 2.248435945e-06
A14: RGB, camera captured, 1080p | B14: EBURainFruits_1920x1080_50_10bit_444 | C14: 1920 | D14: 1080 | E14: 3 | F14: 8 | G14: 50 | H14: 250 | I14: 12441600000 | J14: 0 | K14: =Anchor!B38 -> 873497.0512 | O14: =Anchor!F38 -> 89472.21 | P14: =Anchor!G38 -> 160.62 | Q14: 24.85339167 | R14: 4367485256 | T14: =Test!B38 -> 873513.4288 | X14: =Test!F38 -> 91780.04 | Y14: =Test!G38 -> 160.56 | Z14: 25.49445556 | AA14: 4367567144 | AC14: -1.874946226e-05
B15: Kimono1_1920x1080_24_10bit_444 | C15: 1920 | D15: 1080 | E15: 3 | F15: 8 | G15: 24 | H15: 120 | I15: 5971968000 | J15: 0 | K15: =Anchor!B39 -> 624273.7888 | O15: =Anchor!F39 -> 72462.99 | P15: =Anchor!G39 -> 98.77 | Q15: 20.12860833 | R15: 3121368944 | T15: =Test!B39 -> 624291.1056 | X15: =Test!F39 -> 74640.95 | Y15: =Test!G39 -> 98.59 | Z15: 20.73359722 | AA15: 3121455528 | AC15: -2.773911113e-05
A16: YUV, text & graphics with motion, 1080p | B16: sc_flyingGraphics_1920x1080_60_8bit_444 | C16: 1920 | D16: 1080 | E16: 3 | F16: 8 | G16: 60 | H16: 300 | I16: 14929920000 | J16: 0 | K16: =Anchor!B40 -> 139016.5632 | O16: =Anchor!F40 -> 107939.42 | P16: =Anchor!G40 -> 62.97 | Q16: 29.98317222 | R16: 695082816 | T16: =Test!B40 -> 137064.888 | X16: =Test!F40 -> 108295.81 | Y16: =Test!G40 -> 62.01 | Z16: 30.08216944 | AA16: 685324440 | AC16: 0.01403915588
B17: sc_desktop_1920x1080_60_8bit_444 | C17: 1920 | D17: 1080 | E17: 3 | F17: 8 | G17: 60 | H17: 600 | I17: 29859840000 | J17: 0 | K17: =Anchor!B41 -> 2761.168 | O17: =Anchor!F41 -> 23275.32 | P17: =Anchor!G41 -> 46.28 | Q17: 6.465366667 | R17: 27611680 | T17: =Test!B41 -> 2429.236 | X17: =Test!F41 -> 22961.7 | Y17: =Test!G41 -> 48.49 | Z17: 6.37825 | AA17: 24292360 | AC17: 0.1202143441
B18: sc_console_1920x1080_60_8bit_444 | C18: 1920 | D18: 1080 | E18: 3 | F18: 8 | G18: 60 | H18: 600 | I18: 29859840000 | J18: 0 | K18: =Anchor!B42 -> 11992.616 | O18: =Anchor!F42 -> 51903 | P18: =Anchor!G42 -> 49.13 | Q18: 14.4175 | R18: 119926160 | T18: =Test!B42 -> 11748.1608 | X18: =Test!F42 -> 53062.04 | Y18: =Test!G42 -> 51.13 | Z18: 14.73945556 | AA18: 117481608 | AC18: 0.0203838095
A19: YUV, text & graphics with motion,720p | B19: sc_web_browsing_1280x720_30_8bit_300_444_r1 | C19: 1280 | D19: 720 | E19: 3 | F19: 8 | G19: 30 | H19: 300 | I19: 6635520000 | J19: 0 | K19: =Anchor!B43 -> 1173.1296 | O19: =Anchor!F43 -> 2972.11 | P19: =Anchor!G43 -> 10.6 | Q19: 0.8255861111 | R19: 11731296 | T19: =Test!B43 -> 1077.6744 | X19: =Test!F43 -> 3046.12 | Y19: =Test!G43 -> 11.13 | Z19: 0.8461444444 | AA19: 10776744 | AC19: 0.08136799208
B20: sc_map_1280x720_60_8bit_444 | C20: 1280 | D20: 720 | E20: 3 | F20: 8 | G20: 60 | H20: 600 | I20: 13271040000 | J20: 0 | K20: =Anchor!B44 -> 10360.268 | O20: =Anchor!F44 -> 14539.69 | P20: =Anchor!G44 -> 24.02 | Q20: 4.038802778 | R20: 103602680 | T20: =Test!B44 -> 9740.2936 | X20: =Test!F44 -> 15334.19 | Y20: =Test!G44 -> 24.74 | Z20: 4.259497222 | AA20: 97402936 | AC20: 0.05984154078
B21: sc_programming_1280x720_60_8bit_444 | C21: 1280 | D21: 720 | E21: 3 | F21: 8 | G21: 60 | H21: 600 | I21: 13271040000 | J21: 0 | K21: =Anchor!B45 -> 51245.988 | O21: =Anchor!F45 -> 47371.93 | P21: =Anchor!G45 -> 46.09 | Q21: 13.15886944 | R21: 512459880 | T21: =Test!B45 -> 51224.972 | X21: =Test!F45 -> 47757.04 | Y21: =Test!G45 -> 47.08 | Z21: 13.26584444 | AA21: 512249720 | AC21: 0.0004101003965
B22: sc_SlideShow_1280x720_20_8bit_500_444 | C22: 1280 | D22: 720 | E22: 3 | F22: 8 | G22: 20 | H22: 500 | I22: 11059200000 | J22: 0 | K22: =Anchor!B46 -> 6073.1366 | O22: =Anchor!F46 -> 24217.5 | P22: =Anchor!G46 -> 25.54 | Q22: 6.727083333 | R22: 151828415 | T22: =Test!B46 -> 6068.056 | X22: =Test!F46 -> 24191.96 | Y22: =Test!G46 -> 26.39 | Z22: 6.719988889 | AA22: 151701400 | AC22: 0.0008365693602
A23: YUV, mixed content, 1440p | B23: Basketball_Screen_2560x1440_60p_8b444 | C23: 2560 | D23: 1440 | E23: 3 | F23: 8 | G23: 60 | H23: 300 | I23: 26542080000 | J23: 0 | K23: =Anchor!B47 -> 109131.7328 | O23: =Anchor!F47 -> 35631.27 | P23: =Anchor!G47 -> 58.04 | Q23: 9.897575 | R23: 545658664 | T23: =Test!B47 -> 109071.0304 | X23: =Test!F47 -> 36938.27 | Y23: =Test!G47 -> 59.89 | Z23: 10.26063056 | AA23: 545355152 | AC23: 0.0005562305156
B24: MissionControlClip2_2560x1440_60p_8b444 | C24: 2560 | D24: 1440 | E24: 3 | F24: 8 | G24: 60 | H24: 300 | I24: 26542080000 | J24: 0 | K24: =Anchor!B48 -> 89890.0016 | O24: =Anchor!F48 -> 43043.61 | P24: =Anchor!G48 -> 61.21 | Q24: 11.95655833 | R24: 449450008 | T24: =Test!B48 -> 89873.9104 | X24: =Test!F48 -> 43821.59 | Y24: =Test!G48 -> 63.14 | Z24: 12.17266389 | AA24: 449369552 | AC24: 0.0001790098978
A25: YUV, mixed content, 1080p | B25: MissionControlClip3_1920x1080_60p_8b444 | C25: 1920 | D25: 1080 | E25: 3 | F25: 8 | G25: 60 | H25: 600 | I25: 29859840000 | J25: 0 | K25: =Anchor!B49 -> 48368.5288 | O25: =Anchor!F49 -> 42596.69 | P25: =Anchor!G49 -> 67.32 | Q25: 11.83241389 | R25: 483685288 | T25: =Test!B49 -> 48349.336 | X25: =Test!F49 -> 43363.08 | Y25: =Test!G49 -> 69.57 | Z25: 12.0453 | AA25: 483493360 | AC25: 0.0003968034686
A26: YUV, Animation, 720p | B26: sc_robot_1280x720_30_8bit_300_444 | C26: 1280 | D26: 720 | E26: 3 | F26: 8 | G26: 30 | H26: 300 | I26: 6635520000 | J26: 0 | K26: =Anchor!B50 -> 130968.056 | O26: =Anchor!F50 -> 46609.07 | P26: =Anchor!G50 -> 62.89 | Q26: 12.94696389 | R26: 1309680560 | T26: =Test!B50 -> 130973.0784 | X26: =Test!F50 -> 47881.42 | Y26: =Test!G50 -> 63.33 | Z26: 13.30039444 | AA26: 1309730784 | AC26: -3.834828242e-05
A27: YUV, camera captured, 1080p | B27: EBURainFruits_1920x1080_50_10bit_444 | C27: 1920 | D27: 1080 | E27: 3 | F27: 8 | G27: 50 | H27: 250 | I27: 12441600000 | J27: 0 | K27: =Anchor!B51 -> 675844.6528 | O27: =Anchor!F51 -> 84796.24 | P27: =Anchor!G51 -> 154.9 | Q27: 23.55451111 | R27: 3379223264 | T27: =Test!B51 -> 675863.1744 | X27: =Test!F51 -> 87265.06 | Y27: =Test!G51 -> 153.76 | Z27: 24.24029444 | AA27: 3379315872 | AC27: =IF(R27,-(AA27-R27)/R27,0) -> -2.740511436e-05
B28: Kimono1_1920x1080_24_10bit_444 | C28: 1920 | D28: 1080 | E28: 3 | F28: 8 | G28: 24 | H28: 120 | I28: 5971968000 | J28: 0 | K28: =Anchor!B52 -> 523870.92 | O28: =Anchor!F52 -> 71894.75 | P28: =Anchor!G52 -> 93.04 | Q28: 19.97076389 | R28: 2619354600 | T28: =Test!B52 -> 523885.3648 | X28: =Test!F52 -> 73469.39 | Y28: =Test!G52 -> 92.62 | Z28: 20.40816389 | AA28: 2619426824 | AC28: -2.757320448e-05
A29: Total | B29: =$A3 -> RGB, text & graphics with motion, 1080p | I29: =SUM(I3:I5) -> 74649600000 | K29: =SUM(K3:K5) -> 167710.872 | R29: =SUM(R3:R5) -> 905517968 | T29: =SUM(T3:T5) -> 164438.4688 | AA29: =SUM(AA3:AA5) -> 886994288 | AC29: =IF(R29,-(AA29-R29)/R29,0) -> 0.02045644665
B30: =$A6 -> RGB, text & graphics with motion,720p | I30: =SUM(I6:I9) -> 44236800000 | K30: =SUM(K6:K9) -> 84113.004 | R30: =SUM(R6:R9) -> 955229040 | T30: =SUM(T6:T9) -> 83042.9523 | AA30: =SUM(AA6:AA9) -> 944386855.5 | AC30: 0.01135035059
B31: =$A10 -> RGB, mixed content, 1440p | I31: =SUM(I10:I11) -> 53084160000 | K31: =SUM(K10:K11) -> 257638.4896 | R31: =SUM(R10:R11) -> 1288192448 | T31: =SUM(T10:T11) -> 257469.9472 | AA31: =SUM(AA10:AA11) -> 1287349736 | AC31: 0.0006541817578
B32: =$A12 -> RGB, mixed content, 1080p | I32: =SUM(I12:I12) -> 29859840000 | K32: =SUM(K12:K12) -> 65378.6416 | R32: =SUM(R12:R12) -> 653786416 | T32: =SUM(T12:T12) -> 65333.7032 | AA32: =SUM(AA12:AA12) -> 653337032 | AC32: 0.0006873559759
B33: =$A13 -> RGB, Animation, 720p | I33: =SUM(I13:I13) -> 6635520000 | K33: =SUM(K13:K13) -> 165448.3424 | R33: =SUM(R13:R13) -> 1654483424 | T33: =SUM(T13:T13) -> 165447.9704 | AA33: =SUM(AA13:AA13) -> 1654479704 | AC33: 2.248435945e-06
B34: RGB, camera captured, 1080p | I34: =SUM(I14:I15) -> 18413568000 | K34: =SUM(K14:K15) -> 1497770.84 | R34: =SUM(R14:R15) -> 7488854200 | T34: =SUM(T14:T15) -> 1497804.534 | AA34: =SUM(AA14:AA15) -> 7489022672 | AC34: -2.249636533e-05
B35: =$A16 -> YUV, text & graphics with motion, 1080p | I35: =SUM(I16:I18) -> 74649600000 | K35: =SUM(K16:K18) -> 153770.3472 | R35: =SUM(R16:R18) -> 842620656 | T35: =SUM(T16:T18) -> 151242.2848 | AA35: =SUM(AA16:AA18) -> 827098408 | AC35: 0.01842139507
B36: =$A19 -> YUV, text & graphics with motion,720p | I36: =SUM(I19:I22) -> 44236800000 | K36: =SUM(K19:K22) -> 68852.5222 | R36: =SUM(R19:R22) -> 779622271 | T36: =SUM(T19:T22) -> 68110.996 | AA36: =SUM(AA19:AA22) -> 772130800 | AC36: 0.009609103381
B37: =$A23 -> YUV, mixed content, 1440p | I37: =SUM(I23:I24) -> 53084160000 | K37: =SUM(K23:K24) -> 199021.7344 | R37: =SUM(R23:R24) -> 995108672 | T37: =SUM(T23:T24) -> 198944.9408 | AA37: =SUM(AA23:AA24) -> 994724704 | AC37: 0.0003858553451
B38: =$A25 -> YUV, mixed content, 1080p | I38: =SUM(I25:I25) -> 29859840000 | K38: =SUM(K25:K25) -> 48368.5288 | R38: =SUM(R25:R25) -> 483685288 | T38: =SUM(T25:T25) -> 48349.336 | AA38: =SUM(AA25:AA25) -> 483493360 | AC38: 0.0003968034686
B39: =$A26 -> YUV, Animation, 720p | I39: =SUM(I26:I26) -> 6635520000 | K39: =SUM(K26:K26) -> 130968.056 | R39: =SUM(R26:R26) -> 1309680560 | T39: =SUM(T26:T26) -> 130973.0784 | AA39: =SUM(AA26:AA26) -> 1309730784 | AC39: -3.834828242e-05
B40: YUV, camera captured, 1080p | I40: =SUM(I27:I28) -> 18413568000 | K40: =SUM(K27:K28) -> 1199715.573 | R40: =SUM(R27:R28) -> 5998577864 | T40: =SUM(T27:T28) -> 1199748.539 | AA40: =SUM(AA27:AA28) -> 5998742696 | AC40: -2.747851303e-05
B41: Total Average | I41: =SUM(I3:I28) -> 453758976000 | K41: =SUM(K3:K28) -> 4038756.951 | R41: =SUM(R3:R28) -> 23355358807 | T41: =SUM(T3:T28) -> 4030906.751 | AA41: =SUM(AA3:AA28) -> 2.330149104e+10 | AC41: 0.002306441444
A42: Average | B42: RGB, text & graphics with motion, 1080p | AC42: =AVERAGE(AC3:AC5) -> 0.04342074308
B43: RGB, text & graphics with motion,720p | AC43: =AVERAGE(AC6:AC9) -> 0.03287453603
B44: RGB, mixed content, 1440p | AC44: =AVERAGE(AC10:AC11) -> 0.0006570977526
B45: RGB, mixed content, 1080p | AC45: =AVERAGE(AC12:AC12) -> 0.0006873559759
B46: RGB, Animation, 720p | AC46: =AVERAGE(AC13:AC13) -> 2.248435945e-06
B47: RGB, camera captured, 1080p | AC47: =AVERAGE(AC14:AC15) -> -2.32442867e-05
B48: YUV, text & graphics with motion, 1080p | AC48: =AVERAGE(AC16:AC18) -> 0.05154576982
B49: YUV, text & graphics with motion,720p | AC49: =AVERAGE(AC19:AC22) -> 0.03561405065
B50: YUV, mixed content, 1440p | AC50: =AVERAGE(AC23:AC24) -> 0.0003676202067
B51: YUV, mixed content, 1080p | AC51: =AVERAGE(AC25:AC25) -> 0.0003968034686
B52: YUV, Animation, 720p | AC52: =AVERAGE(AC26:AC26) -> -3.834828242e-05
B53: YUV, camera captured, 1080p | AC53: =AVERAGE(AC27:AC28) -> -2.748915942e-05
B54: Overall Average | AC54: =AVERAGE(AC3:AC28) -> 0.02160961208
A55: Min | B55: RGB, text & graphics with motion, 1080p | K55: =MIN(K$3:K$5) -> 2689.4976 | R55: =MIN(R$3:R$5) -> 26894976 | T55: =MIN(T$3:T$5) -> 2432.7848 | AA55: =MIN(AA$3:AA$5) -> 24327848 | AC55: =MIN(AC$3:AC$5) -> 0.0164081402
B56: RGB, text & graphics with motion,720p | K56: =MIN(K$6:K$9) -> 1361.1232 | R56: =MIN(R$6:R$9) -> 13611232 | T56: =MIN(T$6:T$9) -> 1281.7352 | AA56: =MIN(AA$6:AA$9) -> 12817352 | AC56: =MIN(AC$6:AC$9) -> 0.0008482679789
B57: RGB, mixed content, 1440p | K57: =MIN(K$10:K$11) -> 121327.9008 | R57: =MIN(R$10:R$11) -> 606639504 | T57: =MIN(T$10:T$11) -> 121242.0928 | AA57: =MIN(AA$10:AA$11) -> 606210464 | AC57: =MIN(AC$10:AC$11) -> 0.0006069550482
B58: RGB, mixed content, 1080p | K58: =MIN(K$12:K$12) -> 65378.6416 | R58: =MIN(R$12:R$12) -> 653786416 | T58: =MIN(T$12:T$12) -> 65333.7032 | AA58: =MIN(AA$12:AA$12) -> 653337032 | AC58: =MIN(AC$12:AC$12) -> 0.0006873559759
B59: RGB, Animation, 720p | K59: =MIN(K$13:K$13) -> 165448.3424 | R59: =MIN(R$13:R$13) -> 1654483424 | T59: =MIN(T$13:T$13) -> 165447.9704 | AA59: =MIN(AA$13:AA$13) -> 1654479704 | AC59: =MIN(AC$13:AC$13) -> 2.248435945e-06
B60: RGB, camera captured, 1080p | K60: =MIN(K14:K15) -> 624273.7888 | R60: =MIN(R14:R15) -> 3121368944 | T60: =MIN(T14:T15) -> 624291.1056 | AA60: =MIN(AA14:AA15) -> 3121455528 | AC60: =MIN(AC14:AC15) -> -2.773911113e-05
B61: YUV, text & graphics with motion, 1080p | K61: =MIN(K$16:K$18) -> 2761.168 | R61: =MIN(R$16:R$18) -> 27611680 | T61: =MIN(T$16:T$18) -> 2429.236 | AA61: =MIN(AA$16:AA$18) -> 24292360 | AC61: =MIN(AC$16:AC$18) -> 0.01403915588
B62: YUV, text & graphics with motion,720p | K62: =MIN(K$19:K$22) -> 1173.1296 | R62: =MIN(R$19:R$22) -> 11731296 | T62: =MIN(T$19:T$22) -> 1077.6744 | AA62: =MIN(AA$19:AA$22) -> 10776744 | AC62: =MIN(AC$19:AC$22) -> 0.0004101003965
B63: YUV, mixed content, 1440p | K63: =MIN(K$23:K$24) -> 89890.0016 | R63: =MIN(R$23:R$24) -> 449450008 | T63: =MIN(T$23:T$24) -> 89873.9104 | AA63: =MIN(AA$23:AA$24) -> 449369552 | AC63: =MIN(AC$23:AC$24) -> 0.0001790098978
B64: YUV, mixed content, 1080p | K64: =MIN(K$25:K$25) -> 48368.5288 | R64: =MIN(R$25:R$25) -> 483685288 | T64: =MIN(T$25:T$25) -> 48349.336 | AA64: =MIN(AA$25:AA$25) -> 483493360 | AC64: =MIN(AC$25:AC$25) -> 0.0003968034686
B65: YUV, Animation, 720p | K65: =MIN(K$26:K$26) -> 130968.056 | R65: =MIN(R$26:R$26) -> 1309680560 | T65: =MIN(T$26:T$26) -> 130973.0784 | AA65: =MIN(AA$26:AA$26) -> 1309730784 | AC65: =MIN(AC$26:AC$26) -> -3.834828242e-05
B66: YUV, camera captured, 1080p | K66: =MIN(K27:K28) -> 523870.92 | R66: =MIN(R27:R28) -> 2619354600 | T66: =MIN(T27:T28) -> 523885.3648 | AA66: =MIN(AA27:AA28) -> 2619426824 | AC66: =MIN(AC27:AC28) -> -2.757320448e-05
B67: Overall Min | K67: =MIN(K$3:K$28) -> 1173.1296 | R67: =MIN(R$3:R$28) -> 11731296 | T67: =MIN(T$3:T$28) -> 1077.6744 | AA67: =MIN(AA$3:AA$28) -> 10776744 | AC67: =MIN(AC$3:AC$28) -> -3.834828242e-05
A68: Max | B68: RGB, text & graphics with motion, 1080p | K68: =MAX(K$3:K$5) -> 154318.1504 | R68: =MAX(R$3:R$5) -> 771590752 | T68: =MAX(T$3:T$5) -> 151478.08 | AA68: =MAX(AA$3:AA$5) -> 757390400 | AC68: =MAX(AC$3:AC$5) -> 0.09545009447
B69: RGB, text & graphics with motion,720p | K69: =MAX(K$6:K$9) -> 62082.268 | R69: =MAX(R$6:R$9) -> 620822680 | T69: =MAX(T$6:T$9) -> 62029.6056 | AA69: =MAX(AA$6:AA$9) -> 620296056 | AC69: =MAX(AC$6:AC$9) -> 0.07108289751
B70: RGB, mixed content, 1440p | K70: =MAX(K$10:K$11) -> 136310.5888 | R70: =MAX(R$10:R$11) -> 681552944 | T70: =MAX(T$10:T$11) -> 136227.8544 | AA70: =MAX(AA$10:AA$11) -> 681139272 | AC70: =MAX(AC$10:AC$11) -> 0.0007072404569
B71: RGB, mixed content, 1080p | K71: =MAX(K$12:K$12) -> 65378.6416 | R71: =MAX(R$12:R$12) -> 653786416 | T71: =MAX(T$12:T$12) -> 65333.7032 | AA71: =MAX(AA$12:AA$12) -> 653337032 | AC71: =MAX(AC$12:AC$12) -> 0.0006873559759
B72: RGB, Animation, 720p | K72: =MAX(K$13:K$13) -> 165448.3424 | R72: =MAX(R$13:R$13) -> 1654483424 | T72: =MAX(T$13:T$13) -> 165447.9704 | AA72: =MAX(AA$13:AA$13) -> 1654479704 | AC72: =MAX(AC$13:AC$13) -> 2.248435945e-06
B73: RGB, camera captured, 1080p | K73: =MAX(K14:K15) -> 873497.0512 | R73: =MAX(R14:R15) -> 4367485256 | T73: =MAX(T14:T15) -> 873513.4288 | AA73: =MAX(AA14:AA15) -> 4367567144 | AC73: =MAX(AC14:AC15) -> -1.874946226e-05
B74: YUV, text & graphics with motion, 1080p | K74: =MAX(K$16:K$18) -> 139016.5632 | R74: =MAX(R$16:R$18) -> 695082816 | T74: =MAX(T$16:T$18) -> 137064.888 | AA74: =MAX(AA$16:AA$18) -> 685324440 | AC74: =MAX(AC$16:AC$18) -> 0.1202143441
B75: YUV, text & graphics with motion,720p | K75: =MAX(K$19:K$22) -> 51245.988 | R75: =MAX(R$19:R$22) -> 512459880 | T75: =MAX(T$19:T$22) -> 51224.972 | AA75: =MAX(AA$19:AA$22) -> 512249720 | AC75: =MAX(AC$19:AC$22) -> 0.08136799208
B76: YUV, mixed content, 1440p | K76: =MAX(K$23:K$24) -> 109131.7328 | R76: =MAX(R$23:R$24) -> 545658664 | T76: =MAX(T$23:T$24) -> 109071.0304 | AA76: =MAX(AA$23:AA$24) -> 545355152 | AC76: =MAX(AC$23:AC$24) -> 0.0005562305156
B77: YUV, mixed content, 1080p | K77: =MAX(K$25:K$25) -> 48368.5288 | R77: =MAX(R$25:R$25) -> 483685288 | T77: =MAX(T$25:T$25) -> 48349.336 | AA77: =MAX(AA$25:AA$25) -> 483493360 | AC77: =MAX(AC$25:AC$25) -> 0.0003968034686
B78: YUV, Animation, 720p | K78: =MAX(K$26:K$26) -> 130968.056 | R78: =MAX(R$26:R$26) -> 1309680560 | T78: =MAX(T$26:T$26) -> 130973.0784 | AA78: =MAX(AA$26:AA$26) -> 1309730784 | AC78: =MAX(AC$26:AC$26) -> -3.834828242e-05
B79: YUV, camera captured, 1080p | K79: =MAX(K27:K28) -> 675844.6528 | R79: =MAX(R27:R28) -> 3379223264 | T79: =MAX(T27:T28) -> 675863.1744 | AA79: =MAX(AA27:AA28) -> 3379315872 | AC79: =MAX(AC27:AC28) -> -2.740511436e-05
B80: Overall Max | K80: =MAX(K$3:K$28) -> 873497.0512 | R80: =MAX(R$3:R$28) -> 4367485256 | T80: =MAX(T$3:T$28) -> 873513.4288 | AA80: =MAX(AA$3:AA$28) -> 4367567144 | AC80: =MAX(AC$3:AC$28) -> 0.1202143441
B81: Time geomean | P81: =GEOMEAN(P3:P28) -> 49.80444 | Q81: =GEOMEAN(O3:O28) -> 35499.22511 | Y81: =GEOMEAN(Y3:Y28) -> 50.89328494 | Z81: =GEOMEAN(X3:X28) -> 36094.99781
B82: Time ratio | Y82: =Y81/P81 -> 1.021862407 | Z82: =Z81/Q81 -> 1.016782696
B83: Time sum (hours) | P83: =SUM(P3:P28)/3600 -> 0.4318916667 | Q83: =SUM(Q3:Q28) -> 335.0729889 | Y83: =SUM(Y3:Y28)/3600 -> 0.4381277778 | Z83: =SUM(Z3:Z28) -> 340.6026361

Sheet LB-SCC
K1: =Summary!I2 -> Anchors (SCM-1.0) | T1: =Summary!I3 -> Tested (Rnnnn)
A2: Class | B2: Sequence | C2: Width | D2: Height | E2: SpP | F2: Bit-depth | G2: FPS | H2: Frames | I2: Total Bits (Uncompressed) | J2: QP | K2: kbps | L2: G/Y MSE | M2: B/U MSE | N2: R/V MSE | O2: Enc T [s] | P2: Dec T [s] | Q2: Enc T [h] | R2: Total Bits (Compressed) | T2: kbps | U2: G/Y MSE | V2: B/U MSE | W2: R/V MSE | X2: Enc T [s] | Y2: Dec T [s] | Z2: Enc T [h] | AA2: Total Bits (Compressed) | AC2: Overall Bit-rate Saving
A3: RGB, text & graphics with motion, 1080p | B3: sc_flyingGraphics_1920x1080_60_8bit_rgb | C3: 1920 | D3: 1080 | E3: 3 | F3: 8 | G3: 60 | H3: 300 | I3: =C3*D3*E3*F3*H3 -> 14929920000 | J3: 0 | K3: =Anchor!B53 -> 152274.7552 | O3: =Anchor!F53 -> 156607.52 | P3: =Anchor!G53 -> 63.19 | Q3: =O3/3600 -> 43.50208889 | R3: =K3*1000/$G3*$H3 -> 761373776 | T3: =Test!B53 -> 149693.5696 | X3: =Test!F53 -> 157807.35 | Y3: =Test!G53 -> 61.6 | Z3: =X3/3600 -> 43.835375 | AA3: =T3*1000/$G3*$H3 -> 748467848 | AC3: =IF(R3,-(AA3-R3)/R3,0) -> 0.01695084387
B4: sc_desktop_1920x1080_60_8bit_rgb | C4: 1920 | D4: 1080 | E4: 3 | F4: 8 | G4: 60 | H4: 600 | I4: =C4*D4*E4*F4*H4 -> 29859840000 | J4: 0 | K4: =Anchor!B54 -> 1475.2168 | O4: =Anchor!F54 -> 30190.22 | P4: =Anchor!G54 -> 39.21 | Q4: 8.386172222 | R4: 14752168 | T4: =Test!B54 -> 1397.1424 | X4: =Test!F54 -> 30498.46 | Y4: =Test!G54 -> 41.71 | Z4: 8.471794444 | AA4: 13971424 | AC4: 0.05292401768
B5: sc_console_1920x1080_60_8bit_rgb | C5: 1920 | D5: 1080 | E5: 3 | F5: 8 | G5: 60 | H5: 600 | I5: 29859840000 | J5: 0 | K5: =Anchor!B55 -> 9965.8152 | O5: =Anchor!F55 -> 66078.04 | P5: =Anchor!G55 -> 47.06 | Q5: 18.35501111 | R5: 99658152 | T5: =Test!B55 -> 9879.1712 | X5: =Test!F55 -> 66143.05 | Y5: =Test!G55 -> 49.42 | Z5: 18.37306944 | AA5: 98791712 | AC5: 0.008694120678
A6: RGB, text & graphics with motion,720p | B6: sc_web_browsing_1280x720_30_8bit_300_rgb | C6: 1280 | D6: 720 | E6: 3 | F6: 8 | G6: 30 | H6: 300 | I6: 6635520000 | J6: 0 | K6: =Anchor!B56 -> 750.8696 | O6: =Anchor!F56 -> 5247.04 | P6: =Anchor!G56 -> 8.16 | Q6: 1.457511111 | R6: 7508696 | T6: =Test!B56 -> 723.8936 | X6: =Test!F56 -> 5088.67 | Y6: =Test!G56 -> 8.82 | Z6: 1.413519444 | AA6: 7238936 | AC6: 0.0359263446
B7: sc_map_1280x720_60_8bit | C7: 1280 | D7: 720 | E7: 3 | F7: 8 | G7: 60 | H7: 600 | I7: 13271040000 | J7: 0 | K7: =Anchor!B57 -> 11065.8648 | O7: =Anchor!F57 -> 21892.85 | P7: =Anchor!G57 -> 20.7 | Q7: 6.081347222 | R7: 110658648 | T7: =Test!B57 -> 10532.5488 | X7: =Test!F57 -> 21152.51 | Y7: =Test!G57 -> 21.52 | Z7: 5.875697222 | AA7: 105325488 | AC7: 0.0481946969
B8: sc_programming_1280x720_60_8bit | C8: 1280 | D8: 720 | E8: 3 | F8: 8 | G8: 60 | H8: 600 | I8: 13271040000 | J8: 0 | K8: =Anchor!B58 -> 58972.4096 | O8: =Anchor!F58 -> 60402.91 | P8: =Anchor!G58 -> 45.86 | Q8: 16.77858611 | R8: 589724096 | T8: =Test!B58 -> 58944.0456 | X8: =Test!F58 -> 60525.55 | Y8: =Test!G58 -> 46.62 | Z8: 16.81265278 | AA8: 589440456 | AC8: 0.0004809706809
B9: sc_SlideShow_1280x720_20_8bit_500 | C9: 1280 | D9: 720 | E9: 3 | F9: 8 | G9: 20 | H9: 500 | I9: 11059200000 | J9: 0 | K9: =Anchor!B59 -> 6751.5421 | O9: =Anchor!F59 -> 35403.92 | P9: =Anchor!G59 -> 22.35 | Q9: 9.834422222 | R9: 168788552.5 | T9: =Test!B59 -> 6743.5898 | X9: =Test!F59 -> 34285.17 | Y9: =Test!G59 -> 23.37 | Z9: 9.523658333 | AA9: 168589745 | AC9: 0.001177849428
A10: RGB, mixed content, 1440p | B10: Basketball_Screen_2560x1440_60p_8b444 | C10: 2560 | D10: 1440 | E10: 3 | F10: 8 | G10: 60 | H10: 300 | I10: 26542080000 | J10: 0 | K10: =Anchor!B60 -> 118795.1584 | O10: =Anchor!F60 -> 46627.66 | P10: =Anchor!G60 -> 53.48 | Q10: 12.95212778 | R10: 593975792 | T10: =Test!B60 -> 118782.6896 | X10: =Test!F60 -> 47162.51 | Y10: =Test!G60 -> 55.47 | Z10: 13.10069722 | AA10: 593913448 | AC10: 0.0001049605065
B11: MissionControlClip2_2560x1440_60p_8b444 | C11: 2560 | D11: 1440 | E11: 3 | F11: 8 | G11: 60 | H11: 300 | I11: 26542080000 | J11: 0 | K11: =Anchor!B61 -> 108507.4432 | O11: =Anchor!F61 -> 58125.83 | P11: =Anchor!G61 -> 55.48 | Q11: 16.14606389 | R11: 542537216 | T11: =Test!B61 -> 108495.2736 | X11: =Test!F61 -> 56297.47 | Y11: =Test!G61 -> 57.43 | Z11: 15.63818611 | AA11: 542476368 | AC11: 0.0001121545181
A12: RGB, mixed content, 1080p | B12: MissionControlClip3_1920x1080_60p_8b444 | C12: 1920 | D12: 1080 | E12: 3 | F12: 8 | G12: 60 | H12: 600 | I12: 29859840000 | J12: 0 | K12: =Anchor!B62 -> 58016.168 | O12: =Anchor!F62 -> 55255.45 | P12: =Anchor!G62 -> 65.7 | Q12: 15.34873611 | R12: 580161680 | T12: =Test!B62 -> 58011.364 | X12: =Test!F62 -> 56606.8 | Y12: =Test!G62 -> 68.01 | Z12: 15.72411111 | AA12: 580113640 | AC12: 8.280450374e-05
A13: RGB, Animation, 720p | B13: sc_robot_1280x720_30_8bit_300 | C13: 1280 | D13: 720 | E13: 3 | F13: 8 | G13: 30 | H13: 300 | I13: 6635520000 | J13: 0 | K13: =Anchor!B63 -> 164472.1976 | O13: =Anchor!F63 -> 61522.23 | P13: =Anchor!G63 -> 69 | Q13: 17.08950833 | R13: 1644721976 | T13: =Test!B63 -> 164479.5976 | X13: =Test!F63 -> 62410.66 | Y13: =Test!G63 -> 69.22 | Z13: 17.33629444 | AA13: 1644795976 | AC13: -4.499240667e-05
A14: RGB, camera captured, 1080p | B14: EBURainFruits_1920x1080_50_10bit_444 | C14: 1920 | D14: 1080 | E14: 3 | F14: 8 | G14: 50 | H14: 250 | I14: 12441600000 | J14: 0 | K14: =Anchor!B64 -> 883620.6608 | O14: =Anchor!F64 -> 110704.66 | P14: =Anchor!G64 -> 165.78 | Q14: 30.75129444 | R14: 4418103304 | T14: =Test!B64 -> 883611.344 | X14: =Test!F64 -> 112315.46 | Y14: =Test!G64 -> 165.61 | Z14: 31.19873889 | AA14: 4418056720 | AC14: 1.054389108e-05
B15: Kimono1_1920x1080_24_10bit_444 | C15: 1920 | D15: 1080 | E15: 3 | F15: 8 | G15: 24 | H15: 120 | I15: 5971968000 | J15: 0 | K15: =Anchor!B65 -> 624192.3264 | O15: =Anchor!F65 -> 97162.57 | P15: =Anchor!G65 -> 99.38 | Q15: 26.98960278 | R15: 3120961632 | T15: =Test!B65 -> 624211.4128 | X15: =Test!F65 -> 99992.97 | Y15: =Test!G65 -> 99.05 | Z15: 27.775825 | AA15: 3121057064 | AC15: -3.057775495e-05
A16: YUV, text & graphics with motion, 1080p | B16: sc_flyingGraphics_1920x1080_60_8bit_444 | C16: 1920 | D16: 1080 | E16: 3 | F16: 8 | G16: 60 | H16: 300 | I16: 14929920000 | J16: 0 | K16: =Anchor!B66 -> 136058.9952 | O16: =Anchor!F66 -> 146812.84 | P16: =Anchor!G66 -> 61.7 | Q16: 40.78134444 | R16: 680294976 | T16: =Test!B66 -> 134412.3904 | X16: =Test!F66 -> 148032.27 | Y16: =Test!G66 -> 61.11 | Z16: 41.120075 | AA16: 672061952 | AC16: 0.01210213847
B17: sc_desktop_1920x1080_60_8bit_444 | C17: 1920 | D17: 1080 | E17: 3 | F17: 8 | G17: 60 | H17: 600 | I17: 29859840000 | J17: 0 | K17: =Anchor!B67 -> 1513.7888 | O17: =Anchor!F67 -> 30024.88 | P17: =Anchor!G67 -> 39.29 | Q17: 8.340244444 | R17: 15137888 | T17: =Test!B67 -> 1400.0792 | X17: =Test!F67 -> 30296.25 | Y17: =Test!G67 -> 41.72 | Z17: 8.415625 | AA17: 14000792 | AC17: 0.07511589463
B18: sc_console_1920x1080_60_8bit_444 | C18: 1920 | D18: 1080 | E18: 3 | F18: 8 | G18: 60 | H18: 600 | I18: 29859840000 | J18: 0 | K18: =Anchor!B68 -> 11173.86 | O18: =Anchor!F68 -> 67974.07 | P18: =Anchor!G68 -> 47.59 | Q18: 18.88168611 | R18: 111738600 | T18: =Test!B68 -> 11055.7464 | X18: =Test!F68 -> 67949.71 | Y18: =Test!G68 -> 49.88 | Z18: 18.87491944 | AA18: 110557464 | AC18: 0.010570528
A19: YUV, text & graphics with motion,720p | B19: sc_web_browsing_1280x720_30_8bit_300_444_r1 | C19: 1280 | D19: 720 | E19: 3 | F19: 8 | G19: 30 | H19: 300 | I19: 6635520000 | J19: 0 | K19: =Anchor!B69 -> 630.6392 | O19: =Anchor!F69 -> 5133.71 | P19: =Anchor!G69 -> 8.18 | Q19: 1.426030556 | R19: 6306392 | T19: =Test!B69 -> 596.6232 | X19: =Test!F69 -> 5305.78 | Y19: =Test!G69 -> 8.79 | Z19: 1.473827778 | AA19: 5966232 | AC19: 0.05393892419
B20: sc_map_1280x720_60_8bit_444 | C20: 1280 | D20: 720 | E20: 3 | F20: 8 | G20: 60 | H20: 600 | I20: 13271040000 | J20: 0 | K20: =Anchor!B70 -> 8652.7024 | O20: =Anchor!F70 -> 20331.26 | P20: =Anchor!G70 -> 20.22 | Q20: 5.647572222 | R20: 86527024 | T20: =Test!B70 -> 8334.8496 | X20: =Test!F70 -> 20610.67 | Y20: =Test!G70 -> 21.28 | Z20: 5.725186111 | AA20: 83348496 | AC20: 0.03673451198
B21: sc_programming_1280x720_60_8bit_444 | C21: 1280 | D21: 720 | E21: 3 | F21: 8 | G21: 60 | H21: 600 | I21: 13271040000 | J21: 0 | K21: =Anchor!B71 -> 48850.3416 | O21: =Anchor!F71 -> 60967.33 | P21: =Anchor!G71 -> 44.5 | Q21: 16.93536944 | R21: 488503416 | T21: =Test!B71 -> 48843.1712 | X21: =Test!F71 -> 62186.5 | Y21: =Test!G71 -> 45.79 | Z21: 17.27402778 | AA21: 488431712 | AC21: 0.0001467830063
B22: sc_SlideShow_1280x720_20_8bit_500_444 | C22: 1280 | D22: 720 | E22: 3 | F22: 8 | G22: 20 | H22: 500 | I22: 11059200000 | J22: 0 | K22: =Anchor!B72 -> 5329.5501 | O22: =Anchor!F72 -> 33335.84 | P22: =Anchor!G72 -> 21.46 | Q22: 9.259955556 | R22: 133238752.5 | T22: =Test!B72 -> 5324.807 | X22: =Test!F72 -> 33497.81 | Y22: =Test!G72 -> 22.54 | Z22: 9.304947222 | AA22: 133120175 | AC22: 0.0008899625505
A23: YUV, mixed content, 1440p | B23: Basketball_Screen_2560x1440_60p_8b444 | C23: 2560 | D23: 1440 | E23: 3 | F23: 8 | G23: 60 | H23: 300 | I23: 26542080000 | J23: 0 | K23: =Anchor!B73 -> 95590.0752 | O23: =Anchor!F73 -> 45760.11 | P23: =Anchor!G73 -> 52.89 | Q23: 12.71114167 | R23: 477950376 | T23: =Test!B73 -> 95578.8352 | X23: =Test!F73 -> 45230.31 | Y23: =Test!G73 -> 54.74 | Z23: 12.563975 | AA23: 477894176 | AC23: 0.000117585429
B24: MissionControlClip2_2560x1440_60p_8b444 | C24: 2560 | D24: 1440 | E24: 3 | F24: 8 | G24: 60 | H24: 300 | I24: 26542080000 | J24: 0 | K24: =Anchor!B74 -> 80454.0752 | O24: =Anchor!F74 -> 54889.6 | P24: =Anchor!G74 -> 52.65 | Q24: 15.24711111 | R24: 402270376 | T24: =Test!B74 -> 80452.9248 | X24: =Test!F74 -> 54175.16 | Y24: =Test!G74 -> 54.7 | Z24: 15.04865556 | AA24: 402264624 | AC24: 1.429884064e-05
A25: YUV, mixed content, 1080p | B25: MissionControlClip3_1920x1080_60p_8b444 | C25: 1920 | D25: 1080 | E25: 3 | F25: 8 | G25: 60 | H25: 600 | I25: 29859840000 | J25: 0 | K25: =Anchor!B75 -> 42643.7448 | O25: =Anchor!F75 -> 54276.8 | P25: =Anchor!G75 -> 62.47 | Q25: 15.07688889 | R25: 426437448 | T25: =Test!B75 -> 42645.4032 | X25: =Test!F75 -> 54774.28 | Y25: =Test!G75 -> 64.8 | Z25: 15.21507778 | AA25: 426454032 | AC25: -3.888964273e-05
A26: YUV, Animation, 720p | B26: sc_robot_1280x720_30_8bit_300_444 | C26: 1280 | D26: 720 | E26: 3 | F26: 8 | G26: 30 | H26: 300 | I26: 6635520000 | J26: 0 | K26: =Anchor!B76 -> 128891.044 | O26: =Anchor!F76 -> 57685.41 | P26: =Anchor!G76 -> 62.36 | Q26: 16.023725 | R26: 1288910440 | T26: =Test!B76 -> 128893.696 | X26: =Test!F76 -> 59704.54 | Y26: =Test!G76 -> 62.45 | Z26: 16.58459444 | AA26: 1288936960 | AC26: -2.057551803e-05
A27: YUV, camera captured, 1080p | B27: EBURainFruits_1920x1080_50_10bit_444 | C27: 1920 | D27: 1080 | E27: 3 | F27: 8 | G27: 50 | H27: 250 | I27: 12441600000 | J27: 0 | K27: =Anchor!B77 -> 684510.36 | O27: =Anchor!F77 -> 105462.92 | P27: =Anchor!G77 -> 158.71 | Q27: 29.29525556 | R27: 3422551800 | T27: =Test!B77 -> 684535.696 | X27: =Test!F77 -> 105847.37 | Y27: =Test!G77 -> 157.83 | Z27: 29.40204722 | AA27: 3422678480 | AC27: =IF(R27,-(AA27-R27)/R27,0) -> -3.701331854e-05
B28: Kimono1_1920x1080_24_10bit_444 | C28: 1920 | D28: 1080 | E28: 3 | F28: 8 | G28: 24 | H28: 120 | I28: 5971968000 | J28: 0 | K28: =Anchor!B78 -> 524061.784 | O28: =Anchor!F78 -> 97658.29 | P28: =Anchor!G78 -> 93.84 | Q28: 27.12730278 | R28: 2620308920 | T28: =Test!B78 -> 524070.1296 | X28: =Test!F78 -> 99724.31 | Y28: =Test!G78 -> 93.21 | Z28: 27.70119722 | AA28: 2620350648 | AC28: -1.592483988e-05
A29: Total | B29: =$A3 -> RGB, text & graphics with motion, 1080p | I29: =SUM(I3:I5) -> 74649600000 | K29: =SUM(K3:K5) -> 163715.7872 | R29: =SUM(R3:R5) -> 875784096 | T29: =SUM(T3:T5) -> 160969.8832 | AA29: =SUM(AA3:AA5) -> 861230984 | AC29: =IF(R29,-(AA29-R29)/R29,0) -> 0.01661723713
B30: =$A6 -> RGB, text & graphics with motion,720p | I30: =SUM(I6:I9) -> 44236800000 | K30: =SUM(K6:K9) -> 77540.6861 | R30: =SUM(R6:R9) -> 876679992.5 | T30: =SUM(T6:T9) -> 76944.0778 | AA30: =SUM(AA6:AA9) -> 870594625 | AC30: 0.006941378327
B31: =$A10 -> RGB, mixed content, 1440p | I31: =SUM(I10:I11) -> 53084160000 | K31: =SUM(K10:K11) -> 227302.6016 | R31: =SUM(R10:R11) -> 1136513008 | T31: =SUM(T10:T11) -> 227277.9632 | AA31: =SUM(AA10:AA11) -> 1136389816 | AC31: 0.0001083947118
B32: =$A12 -> RGB, mixed content, 1080p | I32: =SUM(I12:I12) -> 29859840000 | K32: =SUM(K12:K12) -> 58016.168 | R32: =SUM(R12:R12) -> 580161680 | T32: =SUM(T12:T12) -> 58011.364 | AA32: =SUM(AA12:AA12) -> 580113640 | AC32: 8.280450374e-05
B33: =$A13 -> RGB, Animation, 720p | I33: =SUM(I13:I13) -> 6635520000 | K33: =SUM(K13:K13) -> 164472.1976 | R33: =SUM(R13:R13) -> 1644721976 | T33: =SUM(T13:T13) -> 164479.5976 | AA33: =SUM(AA13:AA13) -> 1644795976 | AC33: -4.499240667e-05
B34: RGB, camera captured, 1080p | I34: =SUM(I14:I15) -> 18413568000 | K34: =SUM(K14:K15) -> 1507812.987 | R34: =SUM(R14:R15) -> 7539064936 | T34: =SUM(T14:T15) -> 1507822.757 | AA34: =SUM(AA14:AA15) -> 7539113784 | AC34: -6.479318114e-06
B35: =$A16 -> YUV, text & graphics with motion, 1080p | I35: =SUM(I16:I18) -> 74649600000 | K35: =SUM(K16:K18) -> 148746.644 | R35: =SUM(R16:R18) -> 807171464 | T35: =SUM(T16:T18) -> 146868.216 | AA35: =SUM(AA16:AA18) -> 796620208 | AC35: 0.01307188927
B36: =$A19 -> YUV, text & graphics with motion,720p | I36: =SUM(I19:I22) -> 44236800000 | K36: =SUM(K19:K22) -> 63463.2333 | R36: =SUM(R19:R22) -> 714575584.5 | T36: =SUM(T19:T22) -> 63099.451 | AA36: =SUM(AA19:AA22) -> 710866615 | AC36: 0.00519045092
B37: =$A23 -> YUV, mixed content, 1440p | I37: =SUM(I23:I24) -> 53084160000 | K37: =SUM(K23:K24) -> 176044.1504 | R37: =SUM(R23:R24) -> 880220752 | T37: =SUM(T23:T24) -> 176031.76 | AA37: =SUM(AA23:AA24) -> 880158800 | AC37: 7.038234427e-05
B38: =$A25 -> YUV, mixed content, 1080p | I38: =SUM(I25:I25) -> 29859840000 | K38: =SUM(K25:K25) -> 42643.7448 | R38: =SUM(R25:R25) -> 426437448 | T38: =SUM(T25:T25) -> 42645.4032 | AA38: =SUM(AA25:AA25) -> 426454032 | AC38: -3.888964273e-05
B39: =$A26 -> YUV, Animation, 720p | I39: =SUM(I26:I26) -> 6635520000 | K39: =SUM(K26:K26) -> 128891.044 | R39: =SUM(R26:R26) -> 1288910440 | T39: =SUM(T26:T26) -> 128893.696 | AA39: =SUM(AA26:AA26) -> 1288936960 | AC39: -2.057551803e-05
B40: YUV, camera captured, 1080p | I40: =SUM(I27:I28) -> 18413568000 | K40: =SUM(K27:K28) -> 1208572.144 | R40: =SUM(R27:R28) -> 6042860720 | T40: =SUM(T27:T28) -> 1208605.826 | AA40: =SUM(AA27:AA28) -> 6043029128 | AC40: -2.786891967e-05
B41: Total Average | I41: =SUM(I3:I28) -> 453758976000 | K41: =SUM(K3:K28) -> 3967221.388 | R41: =SUM(R3:R28) -> 22813102097 | T41: =SUM(T3:T28) -> 3961649.994 | AA41: =SUM(AA3:AA28) -> 22778304568 | AC41: 0.001525330876
A42: Average | B42: RGB, text & graphics with motion, 1080p | AC42: =AVERAGE(AC3:AC5) -> 0.02618966074
B43: RGB, text & graphics with motion,720p | AC43: =AVERAGE(AC6:AC9) -> 0.0214449654
B44: RGB, mixed content, 1440p | AC44: =AVERAGE(AC10:AC11) -> 0.0001085575123
B45: RGB, mixed content, 1080p | AC45: =AVERAGE(AC12:AC12) -> 8.280450374e-05
B46: RGB, Animation, 720p | AC46: =AVERAGE(AC13:AC13) -> -4.499240667e-05
B47: RGB, camera captured, 1080p | AC47: =AVERAGE(AC14:AC15) -> -1.001693194e-05
B48: YUV, text & graphics with motion, 1080p | AC48: =AVERAGE(AC16:AC18) -> 0.03259618703
B49: YUV, text & graphics with motion,720p | AC49: =AVERAGE(AC19:AC22) -> 0.02292754543
B50: YUV, mixed content, 1440p | AC50: =AVERAGE(AC23:AC24) -> 6.594213482e-05
B51: YUV, mixed content, 1080p | AC51: =AVERAGE(AC25:AC25) -> -3.888964273e-05
B52: YUV, Animation, 720p | AC52: =AVERAGE(AC26:AC26) -> -2.057551803e-05
B53: YUV, camera captured, 1080p | AC53: =AVERAGE(AC27:AC28) -> -2.646907921e-05
B54: Overall Average | AC54: =AVERAGE(AC3:AC28) -> 0.01361930619
A55: Min | B55: RGB, text & graphics with motion, 1080p | K55: =MIN(K$3:K$5) -> 1475.2168 | R55: =MIN(R$3:R$5) -> 14752168 | T55: =MIN(T$3:T$5) -> 1397.1424 | AA55: =MIN(AA$3:AA$5) -> 13971424 | AC55: =MIN(AC$3:AC$5) -> 0.008694120678
B56: RGB, text & graphics with motion,720p | K56: =MIN(K$6:K$9) -> 750.8696 | R56: =MIN(R$6:R$9) -> 7508696 | T56: =MIN(T$6:T$9) -> 723.8936 | AA56: =MIN(AA$6:AA$9) -> 7238936 | AC56: =MIN(AC$6:AC$9) -> 0.0004809706809
B57: RGB, mixed content, 1440p | K57: =MIN(K$10:K$11) -> 108507.4432 | R57: =MIN(R$10:R$11) -> 542537216 | T57: =MIN(T$10:T$11) -> 108495.2736 | AA57: =MIN(AA$10:AA$11) -> 542476368 | AC57: =MIN(AC$10:AC$11) -> 0.0001049605065
B58: RGB, mixed content, 1080p | K58: =MIN(K$12:K$12) -> 58016.168 | R58: =MIN(R$12:R$12) -> 580161680 | T58: =MIN(T$12:T$12) -> 58011.364 | AA58: =MIN(AA$12:AA$12) -> 580113640 | AC58: =MIN(AC$12:AC$12) -> 8.280450374e-05
B59: RGB, Animation, 720p | K59: =MIN(K$13:K$13) -> 164472.1976 | R59: =MIN(R$13:R$13) -> 1644721976 | T59: =MIN(T$13:T$13) -> 164479.5976 | AA59: =MIN(AA$13:AA$13) -> 1644795976 | AC59: =MIN(AC$13:AC$13) -> -4.499240667e-05
B60: RGB, camera captured, 1080p | K60: =MIN(K14:K15) -> 624192.3264 | R60: =MIN(R14:R15) -> 3120961632 | T60: =MIN(T14:T15) -> 624211.4128 | AA60: =MIN(AA14:AA15) -> 3121057064 | AC60: =MIN(AC14:AC15) -> -3.057775495e-05
B61: YUV, text & graphics with motion, 1080p | K61: =MIN(K$16:K$18) -> 1513.7888 | R61: =MIN(R$16:R$18) -> 15137888 | T61: =MIN(T$16:T$18) -> 1400.0792 | AA61: =MIN(AA$16:AA$18) -> 14000792 | AC61: =MIN(AC$16:AC$18) -> 0.010570528
B62: YUV, text & graphics with motion,720p | K62: =MIN(K$19:K$22) -> 630.6392 | R62: =MIN(R$19:R$22) -> 6306392 | T62: =MIN(T$19:T$22) -> 596.6232 | AA62: =MIN(AA$19:AA$22) -> 5966232 | AC62: =MIN(AC$19:AC$22) -> 0.0001467830063
B63: YUV, mixed content, 1440p | K63: =MIN(K$23:K$24) -> 80454.0752 | R63: =MIN(R$23:R$24) -> 402270376 | T63: =MIN(T$23:T$24) -> 80452.9248 | AA63: =MIN(AA$23:AA$24) -> 402264624 | AC63: =MIN(AC$23:AC$24) -> 1.429884064e-05
B64: YUV, mixed content, 1080p | K64: =MIN(K$25:K$25) -> 42643.7448 | R64: =MIN(R$25:R$25) -> 426437448 | T64: =MIN(T$25:T$25) -> 42645.4032 | AA64: =MIN(AA$25:AA$25) -> 426454032 | AC64: =MIN(AC$25:AC$25) -> -3.888964273e-05
B65: YUV, Animation, 720p | K65: =MIN(K$26:K$26) -> 128891.044 | R65: =MIN(R$26:R$26) -> 1288910440 | T65: =MIN(T$26:T$26) -> 128893.696 | AA65: =MIN(AA$26:AA$26) -> 1288936960 | AC65: =MIN(AC$26:AC$26) -> -2.057551803e-05
B66: YUV, camera captured, 1080p | K66: =MIN(K27:K28) -> 524061.784 | R66: =MIN(R27:R28) -> 2620308920 | T66: =MIN(T27:T28) -> 524070.1296 | AA66: =MIN(AA27:AA28) -> 2620350648 | AC66: =MIN(AC27:AC28) -> -3.701331854e-05
B67: Overall Min | K67: =MIN(K$3:K$28) -> 630.6392 | R67: =MIN(R$3:R$28) -> 6306392 | T67: =MIN(T$3:T$28) -> 596.6232 | AA67: =MIN(AA$3:AA$28) -> 5966232 | AC67: =MIN(AC$3:AC$28) -> -4.499240667e-05
A68: Max | B68: RGB, text & graphics with motion, 1080p | K68: =MAX(K$3:K$5) -> 152274.7552 | R68: =MAX(R$3:R$5) -> 761373776 | T68: =MAX(T$3:T$5) -> 149693.5696 | AA68: =MAX(AA$3:AA$5) -> 748467848 | AC68: =MAX(AC$3:AC$5) -> 0.05292401768
B69: RGB, text & graphics with motion,720p | K69: =MAX(K$6:K$9) -> 58972.4096 | R69: =MAX(R$6:R$9) -> 589724096 | T69: =MAX(T$6:T$9) -> 58944.0456 | AA69: =MAX(AA$6:AA$9) -> 589440456 | AC69: =MAX(AC$6:AC$9) -> 0.0481946969
B70: RGB, mixed content, 1440p | K70: =MAX(K$10:K$11) -> 118795.1584 | R70: =MAX(R$10:R$11) -> 593975792 | T70: =MAX(T$10:T$11) -> 118782.6896 | AA70: =MAX(AA$10:AA$11) -> 593913448 | AC70: =MAX(AC$10:AC$11) -> 0.0001121545181
B71: RGB, mixed content, 1080p | K71: =MAX(K$12:K$12) -> 58016.168 | R71: =MAX(R$12:R$12) -> 580161680 | T71: =MAX(T$12:T$12) -> 58011.364 | AA71: =MAX(AA$12:AA$12) -> 580113640 | AC71: =MAX(AC$12:AC$12) -> 8.280450374e-05
B72: RGB, Animation, 720p | K72: =MAX(K$13:K$13) -> 164472.1976 | R72: =MAX(R$13:R$13) -> 1644721976 | T72: =MAX(T$13:T$13) -> 164479.5976 | AA72: =MAX(AA$13:AA$13) -> 1644795976 | AC72: =MAX(AC$13:AC$13) -> -4.499240667e-05
B73: RGB, camera captured, 1080p | K73: =MAX(K14:K15) -> 883620.6608 | R73: =MAX(R14:R15) -> 4418103304 | T73: =MAX(T14:T15) -> 883611.344 | AA73: =MAX(AA14:AA15) -> 4418056720 | AC73: =MAX(AC14:AC15) -> 1.054389108e-05
B74: YUV, text & graphics with motion, 1080p | K74: =MAX(K$16:K$18) -> 136058.9952 | R74: =MAX(R$16:R$18) -> 680294976 | T74: =MAX(T$16:T$18) -> 134412.3904 | AA74: =MAX(AA$16:AA$18) -> 672061952 | AC74: =MAX(AC$16:AC$18) -> 0.07511589463
B75: YUV, text & graphics with motion,720p | K75: =MAX(K$19:K$22) -> 48850.3416 | R75: =MAX(R$19:R$22) -> 488503416 | T75: =MAX(T$19:T$22) -> 48843.1712 | AA75: =MAX(AA$19:AA$22) -> 488431712 | AC75: =MAX(AC$19:AC$22) -> 0.05393892419
B76: YUV, mixed content, 1440p | K76: =MAX(K$23:K$24) -> 95590.0752 | R76: =MAX(R$23:R$24) -> 477950376 | T76: =MAX(T$23:T$24) -> 95578.8352 | AA76: =MAX(AA$23:AA$24) -> 477894176 | AC76: =MAX(AC$23:AC$24) -> 0.000117585429
B77: YUV, mixed content, 1080p | K77: =MAX(K$25:K$25) -> 42643.7448 | R77: =MAX(R$25:R$25) -> 426437448 | T77: =MAX(T$25:T$25) -> 42645.4032 | AA77: =MAX(AA$25:AA$25) -> 426454032 | AC77: =MAX(AC$25:AC$25) -> -3.888964273e-05
B78: YUV, Animation, 720p | K78: =MAX(K$26:K$26) -> 128891.044 | R78: =MAX(R$26:R$26) -> 1288910440 | T78: =MAX(T$26:T$26) -> 128893.696 | AA78: =MAX(AA$26:AA$26) -> 1288936960 | AC78: =MAX(AC$26:AC$26) -> -2.057551803e-05
B79: YUV, camera captured, 1080p | K79: =MAX(K27:K28) -> 684510.36 | R79: =MAX(R27:R28) -> 3422551800 | T79: =MAX(T27:T28) -> 684535.696 | AA79: =MAX(AA27:AA28) -> 3422678480 | AC79: =MAX(AC27:AC28) -> -1.592483988e-05
B80: Overall Max | K80: =MAX(K$3:K$28) -> 883620.6608 | R80: =MAX(R$3:R$28) -> 4418103304 | T80: =MAX(T$3:T$28) -> 883611.344 | AA80: =MAX(AA$3:AA$28) -> 4418056720 | AC80: =MAX(AC$3:AC$28) -> 0.07511589463
B81: Time geomean | P81: =GEOMEAN(P3:P28) -> 45.54553727 | Q81: =GEOMEAN(O3:O28) -> 47494.83455 | Y81: =GEOMEAN(Y3:Y28) -> 46.90346278 | Z81: =GEOMEAN(X3:X28) -> 47707.71683
B82: Time ratio | Y82: =Y81/P81 -> 1.029814678 | Z82: =Z81/Q81 -> 1.00448222
B83: Time sum (hours) | P83: =SUM(P3:P28)/3600 -> 0.4114472222 | Q83: =SUM(Q3:Q28) -> 440.4261 | Y83: =SUM(Y3:Y28)/3600 -> 0.418525 | Z83: =SUM(Z3:Z28) -> 443.783775

Sheet Anchor
A1: AI | B1: 185359.416 | C1: 114.3084 | D1: 114.3084 | E1: 114.3084 | F1: 12757.36 | G1: 67.34 | H1: 114.3084 | I1: 114.3084 | J1: 114.3084
B2: 82522.6528 | C2: 114.3084 | D2: 114.3084 | E2: 114.3084 | F2: 18012.29 | G2: 98.44 | H2: 114.3084 | I2: 114.3084 | J2: 114.3084
B3: 64274.828 | C3: 114.3084 | D3: 114.3084 | E3: 114.3084 | F3: 16324.18 | G3: 91.7 | H3: 114.3084 | I3: 114.3084 | J3: 114.3084
B4: 29148.9648 | C4: 110.7865 | D4: 110.7865 | E4: 110.7865 | F4: 4798.37 | G4: 24.66 | H4: 110.7865 | I4: 110.7865 | J4: 110.7865
B5: 184834.0944 | C5: 110.7865 | D5: 110.7865 | E5: 110.7865 | F5: 14583.39 | G5: 90.3 | H5: 110.7865 | I5: 110.7865 | J5: 110.7865
B6: 163766.596 | C6: 110.7865 | D6: 110.7865 | E6: 110.7865 | F6: 12794.8 | G6: 84.49 | H6: 110.7865 | I6: 110.7865 | J6: 110.7865
B7: 30007.7715 | C7: 110.7865 | D7: 110.7865 | E7: 110.7865 | F7: 7942.11 | G7: 51.94 | H7: 110.7865 | I7: 110.7865 | J7: 110.7865
B8: 629633.7408 | C8: 116.8071 | D8: 116.8071 | E8: 116.8071 | F8: 23062.7 | G8: 163.49 | H8: 116.8071 | I8: 116.8071 | J8: 116.8071
B9: 967457.0992 | C9: 116.8071 | D9: 116.8071 | E9: 116.8071 | F9: 25206.46 | G9: 227.53 | H9: 116.8071 | I9: 116.8071 | J9: 116.8071
B10: 439716.2008 | C10: 114.3084 | D10: 114.3084 | E10: 114.3084 | F10: 25620.48 | G10: 223.93 | H10: 114.3084 | I10: 114.3084 | J10: 114.3084
B11: 272693.8496 | C11: 110.7865 | D11: 110.7865 | E11: 110.7865 | F11: 13307.65 | G11: 96.26 | H11: 110.7865 | I11: 110.7865 | J11: 110.7865
B12: 1001414.717 | C12: 114.3084 | D12: 114.3084 | E12: 114.3084 | F12: 18951.01 | G12: 175.6 | H12: 114.3084 | I12: 114.3084 | J12: 114.3084
B13: 635643.8464 | C13: 114.3084 | D13: 114.3084 | E13: 114.3084 | F13: 10968.52 | G13: 102.72 | H13: 114.3084 | I13: 114.3084 | J13: 114.3084
B14: 169844.0208 | C14: 114.3084 | D14: 114.3084 | E14: 114.3084 | F14: 12258.45 | G14: 66.2 | H14: 114.3084 | I14: 114.3084 | J14: 114.3084
B15: 84712.7928 | C15: 114.3084 | D15: 114.3084 | E15: 114.3084 | F15: 17983.84 | G15: 100.31 | H15: 114.3084 | I15: 114.3084 | J15: 114.3084
B16: 72272.9152 | C16: 114.3084 | D16: 114.3084 | E16: 114.3084 | F16: 16503.08 | G16: 95.7 | H16: 114.3084 | I16: 114.3084 | J16: 114.3084
B17: 25345.8472 | C17: 110.7865 | D17: 110.7865 | E17: 110.7865 | F17: 4662.17 | G17: 23.86 | H17: 110.7865 | I17: 110.7865 | J17: 110.7865
B18: 154034.1384 | C18: 110.7865 | D18: 110.7865 | E18: 110.7865 | F18: 13905.63 | G18: 85.62 | H18: 110.7865 | I18: 110.7865 | J18: 110.7865
B19: 137475.8848 | C19: 110.7865 | D19: 110.7865 | E19: 110.7865 | F19: 12140.16 | G19: 80.99 | H19: 110.7865 | I19: 110.7865 | J19: 110.7865
B20: 24250.9686 | C20: 110.7865 | D20: 110.7865 | E20: 110.7865 | F20: 7001.73 | G20: 49.24 | H20: 110.7865 | I20: 110.7865 | J20: 110.7865
B21: 519504.5264 | C21: 116.8071 | D21: 116.8071 | E21: 116.8071 | F21: 21492.65 | G21: 158.31 | H21: 116.8071 | I21: 116.8071 | J21: 116.8071
B22: 708285.1824 | C22: 116.8071 | D22: 116.8071 | E22: 116.8071 | F22: 22856.13 | G22: 203.44 | H22: 116.8071 | I22: 116.8071 | J22: 116.8071
B23: 338214.3256 | C23: 114.3084 | D23: 114.3084 | E23: 114.3084 | F23: 24016.6 | G23: 203.39 | H23: 114.3084 | I23: 114.3084 | J23: 114.3084
B24: 216583.0472 | C24: 110.7865 | D24: 110.7865 | E24: 110.7865 | F24: 12277.26 | G24: 88.79 | H24: 110.7865 | I24: 110.7865 | J24: 110.7865
B25: 790516.152 | C25: 114.3084 | D25: 114.3084 | E25: 114.3084 | F25: 18176.3 | G25: 173.64 | H25: 114.3084 | I25: 114.3084 | J25: 114.3084
B26: 531227.0272 | C26: 114.3084 | D26: 114.3084 | E26: 114.3084 | F26: 9212.77 | G26: 95.43 | H26: 114.3084 | I26: 114.3084 | J26: 114.3084
A27: RA | B27: 154318.1504 | C27: 114.3084 | D27: 114.3084 | E27: 114.3084 | F27: 104006.41 | G27: 64.18 | H27: 114.3084 | I27: 114.3084 | J27: 114.3084
B28: 2689.4976 | C28: 114.3084 | D28: 114.3084 | E28: 114.3084 | F28: 23609.73 | G28: 46.71 | H28: 114.3084 | I28: 114.3084 | J28: 114.3084
B29: 10703.224 | C29: 114.3084 | D29: 114.3084 | E29: 114.3084 | F29: 52370.05 | G29: 48.54 | H29: 114.3084 | I29: 114.3084 | J29: 114.3084
B30: 1361.1232 | C30: 110.7865 | D30: 110.7865 | E30: 110.7865 | F30: 2988.92 | G30: 10.61 | H30: 110.7865 | I30: 110.7865 | J30: 110.7865
B31: 13063.0128 | C31: 110.7865 | D31: 110.7865 | E31: 110.7865 | F31: 15048.15 | G31: 24.68 | H31: 110.7865 | I31: 110.7865 | J31: 110.7865
B32: 62082.268 | C32: 110.7865 | D32: 110.7865 | E32: 110.7865 | F32: 47337.94 | G32: 47.93 | H32: 110.7865 | I32: 110.7865 | J32: 110.7865
B33: 7606.6 | C33: 110.7865 | D33: 110.7865 | E33: 110.7865 | F33: 25312.24 | G33: 26.48 | H33: 110.7865 | I33: 110.7865 | J33: 110.7865
B34: 136310.5888 | C34: 116.8071 | D34: 116.8071 | E34: 116.8071 | F34: 37493.19 | G34: 59.1 | H34: 116.8071 | I34: 116.8071 | J34: 116.8071
B35: 121327.9008 | C35: 116.8071 | D35: 116.8071 | E35: 116.8071 | F35: 45412.03 | G35: 64.65 | H35: 116.8071 | I35: 116.8071 | J35: 116.8071
B36: 65378.6416 | C36: 114.3084 | D36: 114.3084 | E36: 114.3084 | F36: 44706.59 | G36: 70.91 | H36: 114.3084 | I36: 114.3084 | J36: 114.3084
B37: 165448.3424 | C37: 110.7865 | D37: 110.7865 | E37: 110.7865 | F37: 49251.71 | G37: 69.6 | H37: 110.7865 | I37: 110.7865 | J37: 110.7865
B38: 873497.0512 | C38: 114.3084 | D38: 114.3084 | E38: 114.3084 | F38: 89472.21 | G38: 160.62 | H38: 114.3084 | I38: 114.3084 | J38: 114.3084
B39: 624273.7888 | C39: 114.3084 | D39: 114.3084 | E39: 114.3084 | F39: 72462.99 | G39: 98.77 | H39: 114.3084 | I39: 114.3084 | J39: 114.3084
B40: 139016.5632 | C40: 114.3084 | D40: 114.3084 | E40: 114.3084 | F40: 107939.42 | G40: 62.97 | H40: 114.3084 | I40: 114.3084 | J40: 114.3084
B41: 2761.168 | C41: 114.3084 | D41: 114.3084 | E41: 114.3084 | F41: 23275.32 | G41: 46.28 | H41: 114.3084 | I41: 114.3084 | J41: 114.3084
B42: 11992.616 | C42: 114.3084 | D42: 114.3084 | E42: 114.3084 | F42: 51903 | G42: 49.13 | H42: 114.3084 | I42: 114.3084 | J42: 114.3084
B43: 1173.1296 | C43: 110.7865 | D43: 110.7865 | E43: 110.7865 | F43: 2972.11 | G43: 10.6 | H43: 110.7865 | I43: 110.7865 | J43: 110.7865
B44: 10360.268 | C44: 110.7865 | D44: 110.7865 | E44: 110.7865 | F44: 14539.69 | G44: 24.02 | H44: 110.7865 | I44: 110.7865 | J44: 110.7865
B45: 51245.988 | C45: 110.7865 | D45: 110.7865 | E45: 110.7865 | F45: 47371.93 | G45: 46.09 | H45: 110.7865 | I45: 110.7865 | J45: 110.7865
B46: 6073.1366 | C46: 110.7865 | D46: 110.7865 | E46: 110.7865 | F46: 24217.5 | G46: 25.54 | H46: 110.7865 | I46: 110.7865 | J46: 110.7865
B47: 109131.7328 | C47: 116.8071 | D47: 116.8071 | E47: 116.8071 | F47: 35631.27 | G47: 58.04 | H47: 116.8071 | I47: 116.8071 | J47: 116.8071
B48: 89890.0016 | C48: 116.8071 | D48: 116.8071 | E48: 116.8071 | F48: 43043.61 | G48: 61.21 | H48: 116.8071 | I48: 116.8071 | J48: 116.8071
B49: 48368.5288 | C49: 114.3084 | D49: 114.3084 | E49: 114.3084 | F49: 42596.69 | G49: 67.32 | H49: 114.3084 | I49: 114.3084 | J49: 114.3084
B50: 130968.056 | C50: 110.7865 | D50: 110.7865 | E50: 110.7865 | F50: 46609.07 | G50: 62.89 | H50: 110.7865 | I50: 110.7865 | J50: 110.7865
B51: 675844.6528 | C51: 114.3084 | D51: 114.3084 | E51: 114.3084 | F51: 84796.24 | G51: 154.9 | H51: 114.3084 | I51: 114.3084 | J51: 114.3084
B52: 523870.92 | C52: 114.3084 | D52: 114.3084 | E52: 114.3084 | F52: 71894.75 | G52: 93.04 | H52: 114.3084 | I52: 114.3084 | J52: 114.3084
A53: LB | B53: 152274.7552 | C53: 114.3084 | D53: 114.3084 | E53: 114.3084 | F53: 156607.52 | G53: 63.19 | H53: 114.3084 | I53: 114.3084 | J53: 114.3084
B54: 1475.2168 | C54: 114.3084 | D54: 114.3084 | E54: 114.3084 | F54: 30190.22 | G54: 39.21 | H54: 114.3084 | I54: 114.3084 | J54: 114.3084
B55: 9965.8152 | C55: 114.3084 | D55: 114.3084 | E55: 114.3084 | F55: 66078.04 | G55: 47.06 | H55: 114.3084 | I55: 114.3084 | J55: 114.3084
B56: 750.8696 | C56: 110.7865 | D56: 110.7865 | E56: 110.7865 | F56: 5247.04 | G56: 8.16 | H56: 110.7865 | I56: 110.7865 | J56: 110.7865
B57: 11065.8648 | C57: 110.7865 | D57: 110.7865 | E57: 110.7865 | F57: 21892.85 | G57: 20.7 | H57: 110.7865 | I57: 110.7865 | J57: 110.7865
B58: 58972.4096 | C58: 110.7865 | D58: 110.7865 | E58: 110.7865 | F58: 60402.91 | G58: 45.86 | H58: 110.7865 | I58: 110.7865 | J58: 110.7865
B59: 6751.5421 | C59: 110.7865 | D59: 110.7865 | E59: 110.7865 | F59: 35403.92 | G59: 22.35 | H59: 110.7865 | I59: 110.7865 | J59: 110.7865
B60: 118795.1584 | C60: 116.8071 | D60: 116.8071 | E60: 116.8071 | F60: 46627.66 | G60: 53.48 | H60: 116.8071 | I60: 116.8071 | J60: 116.8071
B61: 108507.4432 | C61: 116.8071 | D61: 116.8071 | E61: 116.8071 | F61: 58125.83 | G61: 55.48 | H61: 116.8071 | I61: 116.8071 | J61: 116.8071
B62: 58016.168 | C62: 114.3084 | D62: 114.3084 | E62: 114.3084 | F62: 55255.45 | G62: 65.7 | H62: 114.3084 | I62: 114.3084 | J62: 114.3084
B63: 164472.1976 | C63: 110.7865 | D63: 110.7865 | E63: 110.7865 | F63: 61522.23 | G63: 69 | H63: 110.7865 | I63: 110.7865 | J63: 110.7865
B64: 883620.6608 | C64: 114.3084 | D64: 114.3084 | E64: 114.3084 | F64: 110704.66 | G64: 165.78 | H64: 114.3084 | I64: 114.3084 | J64: 114.3084
B65: 624192.3264 | C65: 114.3084 | D65: 114.3084 | E65: 114.3084 | F65: 97162.57 | G65: 99.38 | H65: 114.3084 | I65: 114.3084 | J65: 114.3084
B66: 136058.9952 | C66: 114.3084 | D66: 114.3084 | E66: 114.3084 | F66: 146812.84 | G66: 61.7 | H66: 114.3084 | I66: 114.3084 | J66: 114.3084
B67: 1513.7888 | C67: 114.3084 | D67: 114.3084 | E67: 114.3084 | F67: 30024.88 | G67: 39.29 | H67: 114.3084 | I67: 114.3084 | J67: 114.3084
B68: 11173.86 | C68: 114.3084 | D68: 114.3084 | E68: 114.3084 | F68: 67974.07 | G68: 47.59 | H68: 114.3084 | I68: 114.3084 | J68: 114.3084
B69: 630.6392 | C69: 110.7865 | D69: 110.7865 | E69: 110.7865 | F69: 5133.71 | G69: 8.18 | H69: 110.7865 | I69: 110.7865 | J69: 110.7865
B70: 8652.7024 | C70: 110.7865 | D70: 110.7865 | E70: 110.7865 | F70: 20331.26 | G70: 20.22 | H70: 110.7865 | I70: 110.7865 | J70: 110.7865
B71: 48850.3416 | C71: 110.7865 | D71: 110.7865 | E71: 110.7865 | F71: 60967.33 | G71: 44.5 | H71: 110.7865 | I71: 110.7865 | J71: 110.7865
B72: 5329.5501 | C72: 110.7865 | D72: 110.7865 | E72: 110.7865 | F72: 33335.84 | G72: 21.46 | H72: 110.7865 | I72: 110.7865 | J72: 110.7865
B73: 95590.0752 | C73: 116.8071 | D73: 116.8071 | E73: 116.8071 | F73: 45760.11 | G73: 52.89 | H73: 116.8071 | I73: 116.8071 | J73: 116.8071
B74: 80454.0752 | C74: 116.8071 | D74: 116.8071 | E74: 116.8071 | F74: 54889.6 | G74: 52.65 | H74: 116.8071 | I74: 116.8071 | J74: 116.8071
B75: 42643.7448 | C75: 114.3084 | D75: 114.3084 | E75: 114.3084 | F75: 54276.8 | G75: 62.47 | H75: 114.3084 | I75: 114.3084 | J75: 114.3084
B76: 128891.044 | C76: 110.7865 | D76: 110.7865 | E76: 110.7865 | F76: 57685.41 | G76: 62.36 | H76: 110.7865 | I76: 110.7865 | J76: 110.7865
B77: 684510.36 | C77: 114.3084 | D77: 114.3084 | E77: 114.3084 | F77: 105462.92 | G77: 158.71 | H77: 114.3084 | I77: 114.3084 | J77: 114.3084
B78: 524061.784 | C78: 114.3084 | D78: 114.3084 | E78: 114.3084 | F78: 97658.29 | G78: 93.84 | H78: 114.3084 | I78: 114.3084 | J78: 114.3084

Sheet Test
A1: AI | B1: 179069.2672 | C1: 114.3084 | D1: 114.3084 | E1: 114.3084 | F1: 14065.44 | G1: 62.53
B2: 70441.8136 | C2: 114.3084 | D2: 114.3084 | E2: 114.3084 | F2: 19472.63 | G2: 92.79
B3: 58817.196 | C3: 114.3084 | D3: 114.3084 | E3: 114.3084 | F3: 17662.46 | G3: 86.84
B4: 26995.7696 | C4: 110.7865 | D4: 110.7865 | E4: 110.7865 | F4: 5027.91 | G4: 23.75
B5: 148981.1136 | C5: 110.7865 | D5: 110.7865 | E5: 110.7865 | F5: 15609.11 | G5: 66.25
B6: 162047.6952 | C6: 110.7865 | D6: 110.7865 | E6: 110.7865 | F6: 13966.78 | G6: 83.45
B7: 29961.8256 | C7: 110.7865 | D7: 110.7865 | E7: 110.7865 | F7: 8940.69 | G7: 52.82
B8: 624889.6512 | C8: 116.8071 | D8: 116.8071 | E8: 116.8071 | F8: 25523.82 | G8: 161.56
B9: 961744.2208 | C9: 116.8071 | D9: 116.8071 | E9: 116.8071 | F9: 28260.04 | G9: 224.95
B10: 437172.0528 | C10: 114.3084 | D10: 114.3084 | E10: 114.3084 | F10: 28147.93 | G10: 221.08
B11: 272704.872 | C11: 110.7865 | D11: 110.7865 | E11: 110.7865 | F11: 15038.33 | G11: 95.75
B12: 1001445.41 | C12: 114.3084 | D12: 114.3084 | E12: 114.3084 | F12: 22100.2 | G12: 174.45
B13: 635667.8528 | C13: 114.3084 | D13: 114.3084 | E13: 114.3084 | F13: 12316.83 | G13: 101.36
B14: 165241.1472 | C14: 114.3084 | D14: 114.3084 | E14: 114.3084 | F14: 13416.41 | G14: 63.34
B15: 69955.2432 | C15: 114.3084 | D15: 114.3084 | E15: 114.3084 | F15: 19338.02 | G15: 91.83
B16: 65005.2808 | C16: 114.3084 | D16: 114.3084 | E16: 114.3084 | F16: 17924.12 | G16: 86.49
B17: 22849.6216 | C17: 110.7865 | D17: 110.7865 | E17: 110.7865 | F17: 5083.22 | G17: 22.87
B18: 128629.6016 | C18: 110.7865 | D18: 110.7865 | E18: 110.7865 | F18: 14891.7 | G18: 64.52
B19: 136540.768 | C19: 110.7865 | D19: 110.7865 | E19: 110.7865 | F19: 13065.19 | G19: 80.99
B20: 24218.3955 | C20: 110.7865 | D20: 110.7865 | E20: 110.7865 | F20: 7330.98 | G20: 49.62
B21: 516042.2896 | C21: 116.8071 | D21: 116.8071 | E21: 116.8071 | F21: 23511.53 | G21: 155.6
B22: 707613.3216 | C22: 116.8071 | D22: 116.8071 | E22: 116.8071 | F22: 24898.9 | G22: 201.79
B23: 337078.068 | C23: 114.3084 | D23: 114.3084 | E23: 114.3084 | F23: 25805.81 | G23: 201.75
B24: 216591.42 | C24: 110.7865 | D24: 110.7865 | E24: 110.7865 | F24: 12935.7 | G24: 87.63
B25: 790565.8624 | C25: 114.3084 | D25: 114.3084 | E25: 114.3084 | F25: 20129.92 | G25: 170.29
B26: 531249.7616 | C26: 114.3084 | D26: 114.3084 | E26: 114.3084 | F26: 11043.34 | G26: 93.7
A27: RA | B27: 151478.08 | C27: 114.3084 | D27: 114.3084 | E27: 114.3084 | F27: 104153.47 | G27: 62.46
B28: 2432.7848 | C28: 114.3084 | D28: 114.3084 | E28: 114.3084 | F28: 24016.66 | G28: 48.87
B29: 10527.604 | C29: 114.3084 | D29: 114.3084 | E29: 114.3084 | F29: 52900.32 | G29: 50.68
B30: 1281.7352 | C30: 110.7865 | D30: 110.7865 | E30: 110.7865 | F30: 3073.01 | G30: 11.15
B31: 12134.456 | C31: 110.7865 | D31: 110.7865 | E31: 110.7865 | F31: 15238.33 | G31: 25.09
B32: 62029.6056 | C32: 110.7865 | D32: 110.7865 | E32: 110.7865 | F32: 48591.58 | G32: 48.83
B33: 7597.1555 | C33: 110.7865 | D33: 110.7865 | E33: 110.7865 | F33: 25045.95 | G33: 27.31
B34: 136227.8544 | C34: 116.8071 | D34: 116.8071 | E34: 116.8071 | F34: 36930.16 | G34: 61.06
B35: 121242.0928 | C35: 116.8071 | D35: 116.8071 | E35: 116.8071 | F35: 46054.5 | G35: 66.61
B36: 65333.7032 | C36: 114.3084 | D36: 114.3084 | E36: 114.3084 | F36: 45062.43 | G36: 73.17
B37: 165447.9704 | C37: 110.7865 | D37: 110.7865 | E37: 110.7865 | F37: 51294.42 | G37: 69.6
B38: 873513.4288 | C38: 114.3084 | D38: 114.3084 | E38: 114.3084 | F38: 91780.04 | G38: 160.56
B39: 624291.1056 | C39: 114.3084 | D39: 114.3084 | E39: 114.3084 | F39: 74640.95 | G39: 98.59
B40: 137064.888 | C40: 114.3084 | D40: 114.3084 | E40: 114.3084 | F40: 108295.81 | G40: 62.01
B41: 2429.236 | C41: 114.3084 | D41: 114.3084 | E41: 114.3084 | F41: 22961.7 | G41: 48.49
B42: 11748.1608 | C42: 114.3084 | D42: 114.3084 | E42: 114.3084 | F42: 53062.04 | G42: 51.13
B43: 1077.6744 | C43: 110.7865 | D43: 110.7865 | E43: 110.7865 | F43: 3046.12 | G43: 11.13
B44: 9740.2936 | C44: 110.7865 | D44: 110.7865 | E44: 110.7865 | F44: 15334.19 | G44: 24.74
B45: 51224.972 | C45: 110.7865 | D45: 110.7865 | E45: 110.7865 | F45: 47757.04 | G45: 47.08
B46: 6068.056 | C46: 110.7865 | D46: 110.7865 | E46: 110.7865 | F46: 24191.96 | G46: 26.39
B47: 109071.0304 | C47: 116.8071 | D47: 116.8071 | E47: 116.8071 | F47: 36938.27 | G47: 59.89
B48: 89873.9104 | C48: 116.8071 | D48: 116.8071 | E48: 116.8071 | F48: 43821.59 | G48: 63.14
B49: 48349.336 | C49: 114.3084 | D49: 114.3084 | E49: 114.3084 | F49: 43363.08 | G49: 69.57
B50: 130973.0784 | C50: 110.7865 | D50: 110.7865 | E50: 110.7865 | F50: 47881.42 | G50: 63.33
B51: 675863.1744 | C51: 114.3084 | D51: 114.3084 | E51: 114.3084 | F51: 87265.06 | G51: 153.76
B52: 523885.3648 | C52: 114.3084 | D52: 114.3084 | E52: 114.3084 | F52: 73469.39 | G52: 92.62
A53: LB | B53: 149693.5696 | C53: 114.3084 | D53: 114.3084 | E53: 114.3084 | F53: 157807.35 | G53: 61.6
B54: 1397.1424 | C54: 114.3084 | D54: 114.3084 | E54: 114.3084 | F54: 30498.46 | G54: 41.71
B55: 9879.1712 | C55: 114.3084 | D55: 114.3084 | E55: 114.3084 | F55: 66143.05 | G55: 49.42
B56: 723.8936 | C56: 110.7865 | D56: 110.7865 | E56: 110.7865 | F56: 5088.67 | G56: 8.82
B57: 10532.5488 | C57: 110.7865 | D57: 110.7865 | E57: 110.7865 | F57: 21152.51 | G57: 21.52
B58: 58944.0456 | C58: 110.7865 | D58: 110.7865 | E58: 110.7865 | F58: 60525.55 | G58: 46.62
B59: 6743.5898 | C59: 110.7865 | D59: 110.7865 | E59: 110.7865 | F59: 34285.17 | G59: 23.37
B60: 118782.6896 | C60: 116.8071 | D60: 116.8071 | E60: 116.8071 | F60: 47162.51 | G60: 55.47
B61: 108495.2736 | C61: 116.8071 | D61: 116.8071 | E61: 116.8071 | F61: 56297.47 | G61: 57.43
B62: 58011.364 | C62: 114.3084 | D62: 114.3084 | E62: 114.3084 | F62: 56606.8 | G62: 68.01
B63: 164479.5976 | C63: 110.7865 | D63: 110.7865 | E63: 110.7865 | F63: 62410.66 | G63: 69.22
B64: 883611.344 | C64: 114.3084 | D64: 114.3084 | E64: 114.3084 | F64: 112315.46 | G64: 165.61
B65: 624211.4128 | C65: 114.3084 | D65: 114.3084 | E65: 114.3084 | F65: 99992.97 | G65: 99.05
B66: 134412.3904 | C66: 114.3084 | D66: 114.3084 | E66: 114.3084 | F66: 148032.27 | G66: 61.11
B67: 1400.0792 | C67: 114.3084 | D67: 114.3084 | E67: 114.3084 | F67: 30296.25 | G67: 41.72
B68: 11055.7464 | C68: 114.3084 | D68: 114.3084 | E68: 114.3084 | F68: 67949.71 | G68: 49.88
B69: 596.6232 | C69: 110.7865 | D69: 110.7865 | E69: 110.7865 | F69: 5305.78 | G69: 8.79
B70: 8334.8496 | C70: 110.7865 | D70: 110.7865 | E70: 110.7865 | F70: 20610.67 | G70: 21.28
B71: 48843.1712 | C71: 110.7865 | D71: 110.7865 | E71: 110.7865 | F71: 62186.5 | G71: 45.79
B72: 5324.807 | C72: 110.7865 | D72: 110.7865 | E72: 110.7865 | F72: 33497.81 | G72: 22.54
B73: 95578.8352 | C73: 116.8071 | D73: 116.8071 | E73: 116.8071 | F73: 45230.31 | G73: 54.74
B74: 80452.9248 | C74: 116.8071 | D74: 116.8071 | E74: 116.8071 | F74: 54175.16 | G74: 54.7
B75: 42645.4032 | C75: 114.3084 | D75: 114.3084 | E75: 114.3084 | F75: 54774.28 | G75: 64.8
B76: 128893.696 | C76: 110.7865 | D76: 110.7865 | E76: 110.7865 | F76: 59704.54 | G76: 62.45
B77: 684535.696 | C77: 114.3084 | D77: 114.3084 | E77: 114.3084 | F77: 105847.37 | G77: 157.83
B78: 524070.1296 | C78: 114.3084 | D78: 114.3084 | E78: 114.3084 | F78: 99724.31 | G78: 93.21
